Publisher Label,Publisher URI,"Supplier","Invoice ","Amount (£)","Purpose","Transaction Number","Payment Date","Organisational Unit","Cost Centre(T)","Internal category number"
"Wolverhampton City Council","http://opendatacommunities.org/id/metropolitan-district-council/wolverhampton","Access Tail Lift Services Limited","20016","57.44","Services - Professional Fees","190245648","29/06/16","Fleet Services","Fleet Management","R4400"
"Wolverhampton City Council","http://opendatacommunities.org/id/metropolitan-district-council/wolverhampton","Acme-H&H Refrigeration","IN287840","2,226.00","Equipment - Catering","130125868","22/06/16","Visitor Economy","Art Gallery Tea Room","R4010"
"Wolverhampton City Council","http://opendatacommunities.org/id/metropolitan-district-council/wolverhampton","Acme-H&H Refrigeration","IN287839","3,658.00","Equipment - Catering","130125867","22/06/16","Visitor Economy","Bantock - Tea Rooms","R4010"
"Wolverhampton City Council","http://opendatacommunities.org/id/metropolitan-district-council/wolverhampton","Acorn Environmental Mgt Group Limited","8832","7,724.80","Grounds Maintenance - Contract","130117700","08/06/16","Environmental Maintenance","Arbor Scheme","R2075"
"Wolverhampton City Council","http://opendatacommunities.org/id/metropolitan-district-council/wolverhampton","Acorn Environmental Mgt Group Limited","8944","2,657.56","Grounds Maintenance - Contract","130121215","08/06/16","Environmental Maintenance","Arbor Scheme","R2075"
"Wolverhampton City Council","http://opendatacommunities.org/id/metropolitan-district-council/wolverhampton","Acorn Environmental Mgt Group Limited","8920","767.52","Grounds Maintenance - Contract","130121018","08/06/16","Environmental Maintenance","Arbor Scheme","R2075"
"Wolverhampton City Council","http://opendatacommunities.org/id/metropolitan-district-council/wolverhampton","Acorn Environmental Mgt Group Limited","8948","861.98","Grounds Maintenance - Contract","130121553","08/06/16","Environmental Maintenance","Arbor Scheme","R2075"
"Wolverhampton City Council","http://opendatacommunities.org/id/metropolitan-district-council/wolverhampton","Acs Business Supplies Limited","SINV00312998","481.40","Stationery","130115697","08/06/16","Strategic Director Place","Business Manager - Place","R4308"
"Wolverhampton City Council","http://opendatacommunities.org/id/metropolitan-district-council/wolverhampton","Acs Business Supplies Limited","SCRN00039303","-8.79","Stationery","130118256","08/06/16","Looked After Children","Adoption Team","R4308"
"Wolverhampton City Council","http://opendatacommunities.org/id/metropolitan-district-council/wolverhampton","Acs Business Supplies Limited","SINV00309933","8.79","Stationery","130113280","15/06/16","Looked After Children","Adoption Team","R4308"
"Wolverhampton City Council","http://opendatacommunities.org/id/metropolitan-district-council/wolverhampton","Acs Business Supplies Limited","SINV00322678","13.47","Stationery","130122648","15/06/16","Democratic Services","European Union (EU) Referendum","R4308"
"Wolverhampton City Council","http://opendatacommunities.org/id/metropolitan-district-council/wolverhampton","Acs Business Supplies Limited","SINV00307054","104.48","Stationery","130124789","15/06/16","Visitor Economy","Box Office Administration","R4308"
"Wolverhampton City Council","http://opendatacommunities.org/id/metropolitan-district-council/wolverhampton","Acs Business Supplies Limited","SINV00321763","33.07","Stationery","130122201","10/06/16","Management and Administration","Public Health Support Costs","R4308"
"Wolverhampton City Council","http://opendatacommunities.org/id/metropolitan-district-council/wolverhampton","Acs Business Supplies Limited","SINV00322216","253.60","Stationery","130122450","10/06/16","ICTS","Document Centre - General","R4308"
"Wolverhampton City Council","http://opendatacommunities.org/id/metropolitan-district-council/wolverhampton","Acs Business Supplies Limited","SINV00322219","157.13","Stationery","130122453","10/06/16","Strategic Director Place","Business Manager - Place","R4308"
"Wolverhampton City Council","http://opendatacommunities.org/id/metropolitan-district-council/wolverhampton","Acs Business Supplies Limited","SINV00322215","891.70","Stationery","130122449","10/06/16","Independent Living Service","Independent Living Service","R4308"
"Wolverhampton City Council","http://opendatacommunities.org/id/metropolitan-district-council/wolverhampton","Acs Business Supplies Limited","SINV00321228","14.99","Stationery","130121655","10/06/16","Commercial Services","Corporate Procurement Unit","R4308"
"Wolverhampton City Council","http://opendatacommunities.org/id/metropolitan-district-council/wolverhampton","Acs Business Supplies Limited","SINV00322499","50.80","Stationery","130122454","10/06/16","Looked After Children","LAC Education Team (LACE)","R4308"
"Wolverhampton City Council","http://opendatacommunities.org/id/metropolitan-district-council/wolverhampton","Acs Business Supplies Limited","SINV00321225","507.20","Stationery","130121652","10/06/16","ICTS","Document Centre - General","R4308"
"Wolverhampton City Council","http://opendatacommunities.org/id/metropolitan-district-council/wolverhampton","Acs Business Supplies Limited","SINV00321226","235.50","Stationery","130121653","10/06/16","Visitor Economy","Art Gallery Tea Room","R4308"
"Wolverhampton City Council","http://opendatacommunities.org/id/metropolitan-district-council/wolverhampton","Acs Business Supplies Limited","SINV00321227","183.20","Stationery","130121654","10/06/16","Visitor Economy","Bantock - Tea Rooms","R4308"
"Wolverhampton City Council","http://opendatacommunities.org/id/metropolitan-district-council/wolverhampton","Acs Business Supplies Limited","SINV00321639","253.60","Stationery","130121830","10/06/16","ICTS","Document Centre - General","R4308"
"Wolverhampton City Council","http://opendatacommunities.org/id/metropolitan-district-council/wolverhampton","Acs Business Supplies Limited","SINV00322501","20.35","Stationery","130122456","10/06/16","The Hub","Payroll/HR","R4308"
"Wolverhampton City Council","http://opendatacommunities.org/id/metropolitan-district-council/wolverhampton","Acs Business Supplies Limited","SINV00318226","62.00","Stationery","130118991","10/06/16","Looked After Children","LAC Education Team (LACE)","R4308"
"Wolverhampton City Council","http://opendatacommunities.org/id/metropolitan-district-council/wolverhampton","Acs Business Supplies Limited","SINV00322500","98.88","Stationery","130122455","10/06/16","Visitor Economy","The Little Civic","R4308"
"Wolverhampton City Council","http://opendatacommunities.org/id/metropolitan-district-council/wolverhampton","Acs Business Supplies Limited","SINV00322214","89.03","Stationery","130122448","10/06/16","Revenues & Benefits","Benefits","R4308"
"Wolverhampton City Council","http://opendatacommunities.org/id/metropolitan-district-council/wolverhampton","Acs Business Supplies Limited","SINV00322218","91.82","Stationery","130122452","10/06/16","Looked After Children","LAC Education Team (LACE)","R4308"
"Wolverhampton City Council","http://opendatacommunities.org/id/metropolitan-district-council/wolverhampton","Acs Business Supplies Limited","SINV00319972","182.72","Stationery","130120526","03/06/16","Library Services","Global Budgets","R4308"
"Wolverhampton City Council","http://opendatacommunities.org/id/metropolitan-district-council/wolverhampton","Acs Business Supplies Limited","SINV00319971","253.77","Stationery","130120834","03/06/16","Looked After Children","Adoption Team","R4308"
"Wolverhampton City Council","http://opendatacommunities.org/id/metropolitan-district-council/wolverhampton","Acs Business Supplies Limited","SINV00319971","-253.77","Stationery","130120834","03/06/16","Looked After Children","Adoption Team","R4308"
"Wolverhampton City Council","http://opendatacommunities.org/id/metropolitan-district-council/wolverhampton","Acs Business Supplies Limited","SINV00319971","186.89","Stationery","130120834","03/06/16","Looked After Children","Adoption Team","R4308"
"Wolverhampton City Council","http://opendatacommunities.org/id/metropolitan-district-council/wolverhampton","Acs Business Supplies Limited","SINV00319971","66.88","Stationery","130120834","03/06/16","Looked After Children","Adoption Team","R4308"
"Wolverhampton City Council","http://opendatacommunities.org/id/metropolitan-district-council/wolverhampton","Acs Business Supplies Limited","SINV00320319","253.60","Stationery","130120836","03/06/16","ICTS","Document Centre - General","R4308"
"Wolverhampton City Council","http://opendatacommunities.org/id/metropolitan-district-council/wolverhampton","Acs Business Supplies Limited","SINV00319973","27.80","Stationery","130120527","03/06/16","Catering","Education Catering - General Overheads","R4308"
"Wolverhampton City Council","http://opendatacommunities.org/id/metropolitan-district-council/wolverhampton","Acs Business Supplies Limited","SINV00320318","409.22","Stationery","130120835","03/06/16","Adult Education","Service Wide","R4308"
"Wolverhampton City Council","http://opendatacommunities.org/id/metropolitan-district-council/wolverhampton","Acs Business Supplies Limited","SINV00312287","195.05","Stationery","130115031","22/06/16","Adult Education","Service Wide","R4308"
"Wolverhampton City Council","http://opendatacommunities.org/id/metropolitan-district-council/wolverhampton","Acs Business Supplies Limited","SINV00312287","21.68","Stationery","130115031","22/06/16","Adult Education","Caf�","R4308"
"Wolverhampton City Council","http://opendatacommunities.org/id/metropolitan-district-council/wolverhampton","Acs Business Supplies Limited","SINV00324759","84.66","Stationery","130124453","24/06/16","Safeguarding","Head of Service Quality and Safeguarding","R4308"
"Wolverhampton City Council","http://opendatacommunities.org/id/metropolitan-district-council/wolverhampton","Acs Business Supplies Limited","SINV00324045","253.60","Stationery","130123906","24/06/16","ICTS","Document Centre - General","R4308"
"Wolverhampton City Council","http://opendatacommunities.org/id/metropolitan-district-council/wolverhampton","Acs Business Supplies Limited","SINV00324162","125.21","Stationery","130123908","24/06/16","Children in Need & Child Protection","CIN/CP S17  SW Unit - Area 3A","R4308"
"Wolverhampton City Council","http://opendatacommunities.org/id/metropolitan-district-council/wolverhampton","Acs Business Supplies Limited","SINV00324436","253.60","Stationery","130124052","24/06/16","ICTS","Document Centre - General","R4308"
"Wolverhampton City Council","http://opendatacommunities.org/id/metropolitan-district-council/wolverhampton","Acs Business Supplies Limited","SINV00324480","28.72","Stationery","130123912","24/06/16","Leisure Services","Aldersley Leisure Village","R4308"
"Wolverhampton City Council","http://opendatacommunities.org/id/metropolitan-district-council/wolverhampton","Acs Business Supplies Limited","SINV00324245","72.92","Stationery","130123909","24/06/16","Revenues & Benefits","Revenues","R4308"
"Wolverhampton City Council","http://opendatacommunities.org/id/metropolitan-district-council/wolverhampton","Acs Business Supplies Limited","SINV00324381","73.14","Stationery","130123911","24/06/16","Welfare Rights & Financial Assessment","Welfare Rights","R4308"
"Wolverhampton City Council","http://opendatacommunities.org/id/metropolitan-district-council/wolverhampton","Acs Business Supplies Limited","SINV00324758","253.60","Stationery","130124452","24/06/16","ICTS","Document Centre - General","R4308"
"Wolverhampton City Council","http://opendatacommunities.org/id/metropolitan-district-council/wolverhampton","Acs Business Supplies Limited","SINV00324046","273.87","Stationery","130123907","24/06/16","Communications & Marketing","Communications & Marketing - General","R4308"
"Wolverhampton City Council","http://opendatacommunities.org/id/metropolitan-district-council/wolverhampton","Acs Business Supplies Limited","SINV00321762","484.01","Stationery","130125878","29/06/16","Strategic Finance","Strategic Finance","R4308"
"Wolverhampton City Council","http://opendatacommunities.org/id/metropolitan-district-council/wolverhampton","Acs Business Supplies Limited","SINV00319873","12.12","Stationery","130120524","01/06/16","Visitor Economy","Education And Access","R4308"
"Wolverhampton City Council","http://opendatacommunities.org/id/metropolitan-district-council/wolverhampton","Acs Business Supplies Limited","SINV00319872","32.60","Stationery","130120523","01/06/16","Facilities Management","Civic Centre","R4308"
"Wolverhampton City Council","http://opendatacommunities.org/id/metropolitan-district-council/wolverhampton","Acs Business Supplies Limited","SINV00319871","215.13","Stationery","130120522","01/06/16","Bereavement Services","Crematorium","R4308"
"Wolverhampton City Council","http://opendatacommunities.org/id/metropolitan-district-council/wolverhampton","Acs Business Supplies Limited","SINV00319438","15.73","Stationery","130120128","01/06/16","The Hub","Payments Team","R4308"
"Wolverhampton City Council","http://opendatacommunities.org/id/metropolitan-district-council/wolverhampton","Acs Business Supplies Limited","SINV00319438","12.45","Stationery","130120128","01/06/16","HR Advice","Occupational Health","R4308"
"Wolverhampton City Council","http://opendatacommunities.org/id/metropolitan-district-council/wolverhampton","Acs Business Supplies Limited","SINV00319438","6.33","Stationery","130120128","01/06/16","The Hub","Payroll/HR","R4308"
"Wolverhampton City Council","http://opendatacommunities.org/id/metropolitan-district-council/wolverhampton","Acs Business Supplies Limited","SCRN00039383","-18.99","Stationery","130119657","01/06/16","Looked After Children","Pupil Premium","R4308"
"Wolverhampton City Council","http://opendatacommunities.org/id/metropolitan-district-council/wolverhampton","Acs Business Supplies Limited","SCRN00039427","-17.01","Stationery","130119658","01/06/16","Fleet Services","Fleet Management","R4308"
"Wolverhampton City Council","http://opendatacommunities.org/id/metropolitan-district-council/wolverhampton","Acs Business Supplies Limited","SCRN00039443","-32.40","Stationery","130119659","01/06/16","Skills","Connexions Contract","R4308"
"Wolverhampton City Council","http://opendatacommunities.org/id/metropolitan-district-council/wolverhampton","Acs Business Supplies Limited","SINV00312647","345.79","Stationery","130115696","01/06/16","Strategic Finance","Strategic Finance","R4308"
"Wolverhampton City Council","http://opendatacommunities.org/id/metropolitan-district-council/wolverhampton","Acs Business Supplies Limited","SINV00323707","269.90","Stationery","130123458","17/06/16","Catering","Education Catering - General Overheads","R4308"
"Wolverhampton City Council","http://opendatacommunities.org/id/metropolitan-district-council/wolverhampton","Acs Business Supplies Limited","SINV00314140","253.60","Stationery","130125152","17/06/16","ICTS","Document Centre - General","R4308"
"Wolverhampton City Council","http://opendatacommunities.org/id/metropolitan-district-council/wolverhampton","Acs Business Supplies Limited","SINV00323708","57.86","Stationery","130123459","17/06/16","Mental Health Assesment & Care Management","Mental Health Assessment & Care Management","R4308"
"Wolverhampton City Council","http://opendatacommunities.org/id/metropolitan-district-council/wolverhampton","Acs Business Supplies Limited","SCRN00039584","-8.11","Stationery","130120831","17/06/16","Adult Education","The Maltings","R4308"
"Wolverhampton City Council","http://opendatacommunities.org/id/metropolitan-district-council/wolverhampton","Acs Business Supplies Limited","SINV00320320","24.00","Stationery","130120837","17/06/16","Adult Education","Service Wide","R4308"
"Wolverhampton City Council","http://opendatacommunities.org/id/metropolitan-district-council/wolverhampton","Acs Business Supplies Limited","SCRN00039750","-9.84","Stationery","130121252","17/06/16","Adult Education","Service Wide","R4308"
"Wolverhampton City Council","http://opendatacommunities.org/id/metropolitan-district-council/wolverhampton","Acs Business Supplies Limited","SINV00319970","9.84","Stationery","130120525","17/06/16","Adult Education","Service Wide","R4308"
"Wolverhampton City Council","http://opendatacommunities.org/id/metropolitan-district-council/wolverhampton","Acs Business Supplies Limited","SINV00323710","126.80","Stationery","130123461","17/06/16","Adult Education","Service Wide","R4308"
"Wolverhampton City Council","http://opendatacommunities.org/id/metropolitan-district-council/wolverhampton","Acs Business Supplies Limited","SINV00323709","2,065.20","Stationery","130123460","17/06/16","Adult Education","Service Wide","R4308"
"Wolverhampton City Council","http://opendatacommunities.org/id/metropolitan-district-council/wolverhampton","Acs Business Supplies Limited","SINV00323706","86.05","Stationery","130123457","17/06/16","Fleet Services","Fleet Management","R4308"
"Wolverhampton City Council","http://opendatacommunities.org/id/metropolitan-district-council/wolverhampton","Acs Business Supplies Limited","SINV00323189","48.13","Stationery","130122881","17/06/16","Maintenance Programme","Centralised R&M","R4308"
"Wolverhampton City Council","http://opendatacommunities.org/id/metropolitan-district-council/wolverhampton","Acs Business Supplies Limited","SINV00323190","66.76","Stationery","130122882","17/06/16","Catering","Education Catering - General Overheads","R4308"
"Wolverhampton City Council","http://opendatacommunities.org/id/metropolitan-district-council/wolverhampton","Acs Business Supplies Limited","SINV00323186","43.17","Stationery","130122878","17/06/16","Independent Living Service","Independent Living Service","R4308"
"Wolverhampton City Council","http://opendatacommunities.org/id/metropolitan-district-council/wolverhampton","Acs Business Supplies Limited","SINV00323188","253.60","Stationery","130122880","17/06/16","ICTS","Document Centre - General","R4308"
"Wolverhampton City Council","http://opendatacommunities.org/id/metropolitan-district-council/wolverhampton","Acs Business Supplies Limited","SINV00323187","231.21","Stationery","130122879","17/06/16","Looked After Children","LAC Transitions Team","R4308"
"Wolverhampton City Council","http://opendatacommunities.org/id/metropolitan-district-council/wolverhampton","Acs Business Supplies Limited","SINV00323185","299.99","Stationery","130122877","17/06/16","Customer Services","City Direct","R4308"
"Wolverhampton City Council","http://opendatacommunities.org/id/metropolitan-district-council/wolverhampton","Acs Business Supplies Limited","SCRN00039866","-62.00","Stationery","130122193","17/06/16","Looked After Children","LAC Education Team (LACE)","R4308"
"Wolverhampton City Council","http://opendatacommunities.org/id/metropolitan-district-council/wolverhampton","Adoption Matters Northwest","57/15","517.00","Direct Work With Children","130123595","15/06/16","Looked After Children","Adoption and Residence Team & Allowances","R6310"
"Wolverhampton City Council","http://opendatacommunities.org/id/metropolitan-district-council/wolverhampton","Adoption Matters Northwest","57/15","-517.00","Direct Work With Children","130123595","15/06/16","Looked After Children","Adoption and Residence Team & Allowances","R6310"
"Wolverhampton City Council","http://opendatacommunities.org/id/metropolitan-district-council/wolverhampton","Adoption Matters Northwest","57/15","517.00","Direct Work With Children","130123595","15/06/16","Looked After Children","Adoption and Residence Team & Allowances","R6310"
"Wolverhampton City Council","http://opendatacommunities.org/id/metropolitan-district-council/wolverhampton","Adoption Matters Northwest","265/15","2,108.00","Direct Work With Children","130123571","08/06/16","Looked After Children","Adoption and Residence Team & Allowances","R6310"
"Wolverhampton City Council","http://opendatacommunities.org/id/metropolitan-district-council/wolverhampton","Adoption Matters Northwest","265/15","-2,108.00","Direct Work With Children","130123571","08/06/16","Looked After Children","Adoption and Residence Team & Allowances","R6310"
"Wolverhampton City Council","http://opendatacommunities.org/id/metropolitan-district-council/wolverhampton","Adoption Matters Northwest","265/15","2,108.00","Direct Work With Children","130123571","08/06/16","Looked After Children","Adoption and Residence Team & Allowances","R6310"
"Wolverhampton City Council","http://opendatacommunities.org/id/metropolitan-district-council/wolverhampton","Adoption Matters Northwest","79/15","5,250.00","TPP - Payments to voluntary groups","130124014","17/06/16","Looked After Children","Adoption and Residence Team & Allowances","R5200"
"Wolverhampton City Council","http://opendatacommunities.org/id/metropolitan-district-council/wolverhampton","Adoption Matters Northwest","213/15","262.00","Direct Work With Children","130123563","15/06/16","Looked After Children","Adoption and Residence Team & Allowances","R6310"
"Wolverhampton City Council","http://opendatacommunities.org/id/metropolitan-district-council/wolverhampton","Adoption Matters Northwest","56/15","863.50","Direct Work With Children","130123594","15/06/16","Looked After Children","Adoption and Residence Team & Allowances","R6310"
"Wolverhampton City Council","http://opendatacommunities.org/id/metropolitan-district-council/wolverhampton","Adoption Matters Northwest","56/15","-863.50","Direct Work With Children","130123594","15/06/16","Looked After Children","Adoption and Residence Team & Allowances","R6310"
"Wolverhampton City Council","http://opendatacommunities.org/id/metropolitan-district-council/wolverhampton","Adoption Matters Northwest","56/15","863.50","Direct Work With Children","130123594","15/06/16","Looked After Children","Adoption and Residence Team & Allowances","R6310"
"Wolverhampton City Council","http://opendatacommunities.org/id/metropolitan-district-council/wolverhampton","Adoption Matters Northwest","213/15","262.00","Direct Work With Children","130123563","15/06/16","Looked After Children","Adoption and Residence Team & Allowances","R6310"
"Wolverhampton City Council","http://opendatacommunities.org/id/metropolitan-district-council/wolverhampton","Adoption Matters Northwest","213/15","-262.00","Direct Work With Children","130123563","15/06/16","Looked After Children","Adoption and Residence Team & Allowances","R6310"
"Wolverhampton City Council","http://opendatacommunities.org/id/metropolitan-district-council/wolverhampton","Adoption Matters Northwest","122/15","2,943.39","Services - Professional Fees","130123522","15/06/16","Looked After Children","Adoption and Residence Team & Allowances","R4400"
"Wolverhampton City Council","http://opendatacommunities.org/id/metropolitan-district-council/wolverhampton","Adoption Matters Northwest","122/15","-2,943.39","Services - Professional Fees","130123522","15/06/16","Looked After Children","Adoption and Residence Team & Allowances","R4400"
"Wolverhampton City Council","http://opendatacommunities.org/id/metropolitan-district-council/wolverhampton","Adoption Matters Northwest","122/15","2,943.39","Services - Professional Fees","130123522","15/06/16","Looked After Children","Adoption and Residence Team & Allowances","R4400"
"Wolverhampton City Council","http://opendatacommunities.org/id/metropolitan-district-council/wolverhampton","Adt Fire And Security PLC","32308316-02","-916.63","Fixtures and Fittings - R&M","130124463","15/06/16","Learning Disability Provider","Ernest Bold Court","R2502"
"Wolverhampton City Council","http://opendatacommunities.org/id/metropolitan-district-council/wolverhampton","Adt Fire And Security PLC","32493641-02","411.99","Fixtures and Fittings - R&M","130126570","29/06/16","Visitor Economy","Art Gallery","R2502"
"Wolverhampton City Council","http://opendatacommunities.org/id/metropolitan-district-council/wolverhampton","Adt Fire And Security PLC","32562140 - 02","256.57","Fixtures and Fittings - R&M","130123966","15/06/16","Markets","Bilston Market and Licensed Operations","R2502"
"Wolverhampton City Council","http://opendatacommunities.org/id/metropolitan-district-council/wolverhampton","Adt Fire And Security PLC","32548442 - 02","142.00","Fixtures and Fittings - R&M","130123965","15/06/16","Markets","Bilston Market and Licensed Operations","R2502"
"Wolverhampton City Council","http://opendatacommunities.org/id/metropolitan-district-council/wolverhampton","Adt Fire And Security PLC","32258819 - 02","2,106.60","Fixtures and Fittings - R&M","130123962","15/06/16","Markets","Bilston Market and Licensed Operations","R2502"
"Wolverhampton City Council","http://opendatacommunities.org/id/metropolitan-district-council/wolverhampton","Adt Fire And Security PLC","32249015 - 02","798.49","Fixtures and Fittings - R&M","130123961","15/06/16","Markets","Bilston Market and Licensed Operations","R2502"
"Wolverhampton City Council","http://opendatacommunities.org/id/metropolitan-district-council/wolverhampton","Adt Fire And Security PLC","32572419 - 02","142.00","Fixtures and Fittings - R&M","130123967","17/06/16","Markets","Bilston Market and Licensed Operations","R2502"
"Wolverhampton City Council","http://opendatacommunities.org/id/metropolitan-district-council/wolverhampton","Adt Fire And Security PLC","31809038-02","3,384.63","Fixtures and Fittings - R&M","130124462","15/06/16","Learning Disability Provider","Ernest Bold Court","R2502"
"Wolverhampton City Council","http://opendatacommunities.org/id/metropolitan-district-council/wolverhampton","Adt Fire And Security PLC","32520767 - 02","515.19","Fixtures and Fittings - R&M","130122349","01/06/16","Bereavement Services","Cemeteries","R2502"
"Wolverhampton City Council","http://opendatacommunities.org/id/metropolitan-district-council/wolverhampton","Adt Fire And Security PLC","32551797 - 02","607.43","Fixtures and Fittings - R&M","130120700","03/06/16","Visitor Economy","Art Gallery","R2502"
"Wolverhampton City Council","http://opendatacommunities.org/id/metropolitan-district-council/wolverhampton","Adt Fire And Security PLC","32551800 - 02","626.03","Fixtures and Fittings - R&M","130120702","03/06/16","Visitor Economy","Art Gallery","R2502"
"Wolverhampton City Council","http://opendatacommunities.org/id/metropolitan-district-council/wolverhampton","Adt Fire And Security PLC","32551802 - 02","778.94","Fixtures and Fittings - R&M","130120703","03/06/16","Visitor Economy","Art Gallery","R2502"
"Wolverhampton City Council","http://opendatacommunities.org/id/metropolitan-district-council/wolverhampton","Adt Fire And Security PLC","32551798 - 02","255.85","Fixtures and Fittings - R&M","130120701","03/06/16","Visitor Economy","Art Gallery","R2502"
"Wolverhampton City Council","http://opendatacommunities.org/id/metropolitan-district-council/wolverhampton","Adt Fire And Security PLC","32555637 - 02","45.00","Fixtures and Fittings - R&M","130121914","10/06/16","Learning Disability Provider","Support Plus","R2502"
"Wolverhampton City Council","http://opendatacommunities.org/id/metropolitan-district-council/wolverhampton","Adt Fire And Security PLC","32545452-02","3,457.64","R&M - Departmental planned (internal)","130122539","01/06/16","Leisure Services","Aldersley Leisure Village","R2000"
"Wolverhampton City Council","http://opendatacommunities.org/id/metropolitan-district-council/wolverhampton","Adt Fire And Security PLC","32065198 - 02","142.00","R&M - Departmental planned (internal)","130125786","22/06/16","Maintenance Programme","Centralised R&M","R2000"
"Wolverhampton City Council","http://opendatacommunities.org/id/metropolitan-district-council/wolverhampton","Adt Fire And Security PLC","32788479 - 02","142.00","Fixtures and Fittings - R&M","130123968","24/06/16","Markets","Bilston Market and Licensed Operations","R2502"
"Wolverhampton City Council","http://opendatacommunities.org/id/metropolitan-district-council/wolverhampton","Af Blakemore/Blakemore Foodservice","4746692","3.14","Provisions (Resale)","130123803","08/06/16","Older People Provider Services","Ekta Day Centre","R4102"
"Wolverhampton City Council","http://opendatacommunities.org/id/metropolitan-district-council/wolverhampton","Af Blakemore/Blakemore Foodservice","4735358","3.14","Provisions (Resale)","130123792","08/06/16","Older People Provider Services","Ekta Day Centre","R4102"
"Wolverhampton City Council","http://opendatacommunities.org/id/metropolitan-district-council/wolverhampton","Af Blakemore/Blakemore Foodservice","4758086","6.28","Provisions (Resale)","130123810","08/06/16","Older People Provider Services","Ekta Day Centre","R4102"
"Wolverhampton City Council","http://opendatacommunities.org/id/metropolitan-district-council/wolverhampton","Af Blakemore/Blakemore Foodservice","4747460","451.33","Provisions (Resale)","130123804","15/06/16","Visitor Economy","Bantock - Tea Rooms","R4102"
"Wolverhampton City Council","http://opendatacommunities.org/id/metropolitan-district-council/wolverhampton","Af Blakemore/Blakemore Foodservice","4747460","-451.33","Provisions (Resale)","130123804","15/06/16","Visitor Economy","Bantock - Tea Rooms","R4102"
"Wolverhampton City Council","http://opendatacommunities.org/id/metropolitan-district-council/wolverhampton","Af Blakemore/Blakemore Foodservice","4747460","246.80","Provisions (Resale)","130123804","15/06/16","Visitor Economy","Bantock - Tea Rooms","R4102"
"Wolverhampton City Council","http://opendatacommunities.org/id/metropolitan-district-council/wolverhampton","Af Blakemore/Blakemore Foodservice","4736087","568.68","Provisions (Resale)","130123794","15/06/16","Visitor Economy","Bantock - Tea Rooms","R4102"
"Wolverhampton City Council","http://opendatacommunities.org/id/metropolitan-district-council/wolverhampton","Af Blakemore/Blakemore Foodservice","4736087","-568.68","Provisions (Resale)","130123794","15/06/16","Visitor Economy","Bantock - Tea Rooms","R4102"
"Wolverhampton City Council","http://opendatacommunities.org/id/metropolitan-district-council/wolverhampton","Af Blakemore/Blakemore Foodservice","4736087","319.92","Provisions (Resale)","130123794","15/06/16","Visitor Economy","Bantock - Tea Rooms","R4102"
"Wolverhampton City Council","http://opendatacommunities.org/id/metropolitan-district-council/wolverhampton","Af Blakemore/Blakemore Foodservice","4736087","248.76","Provisions (Resale)","130123794","15/06/16","Visitor Economy","Bantock - Tea Rooms","R4102"
"Wolverhampton City Council","http://opendatacommunities.org/id/metropolitan-district-council/wolverhampton","Af Blakemore/Blakemore Foodservice","4730754","463.53","Provisions (Resale)","130123790","15/06/16","Visitor Economy","Bantock - Tea Rooms","R4102"
"Wolverhampton City Council","http://opendatacommunities.org/id/metropolitan-district-council/wolverhampton","Af Blakemore/Blakemore Foodservice","4730754","-463.53","Provisions (Resale)","130123790","15/06/16","Visitor Economy","Bantock - Tea Rooms","R4102"
"Wolverhampton City Council","http://opendatacommunities.org/id/metropolitan-district-council/wolverhampton","Af Blakemore/Blakemore Foodservice","4730754","256.52","Provisions (Resale)","130123790","15/06/16","Visitor Economy","Bantock - Tea Rooms","R4102"
"Wolverhampton City Council","http://opendatacommunities.org/id/metropolitan-district-council/wolverhampton","Af Blakemore/Blakemore Foodservice","4730754","207.01","Provisions (Resale)","130123790","15/06/16","Visitor Economy","Bantock - Tea Rooms","R4102"
"Wolverhampton City Council","http://opendatacommunities.org/id/metropolitan-district-council/wolverhampton","Af Blakemore/Blakemore Foodservice","4725330","127.85","Provisions (Resale)","130123789","15/06/16","Visitor Economy","Bantock - Tea Rooms","R4102"
"Wolverhampton City Council","http://opendatacommunities.org/id/metropolitan-district-council/wolverhampton","Af Blakemore/Blakemore Foodservice","4640548","-391.45","Provisions (Resale)","130123775","15/06/16","Visitor Economy","Bantock - Tea Rooms","R4102"
"Wolverhampton City Council","http://opendatacommunities.org/id/metropolitan-district-council/wolverhampton","Af Blakemore/Blakemore Foodservice","4640548","262.01","Provisions (Resale)","130123775","15/06/16","Visitor Economy","Bantock - Tea Rooms","R4102"
"Wolverhampton City Council","http://opendatacommunities.org/id/metropolitan-district-council/wolverhampton","Af Blakemore/Blakemore Foodservice","4640548","129.44","Provisions (Resale)","130123775","15/06/16","Visitor Economy","Bantock - Tea Rooms","R4102"
"Wolverhampton City Council","http://opendatacommunities.org/id/metropolitan-district-council/wolverhampton","Af Blakemore/Blakemore Foodservice","4648007","451.71","Provisions (Resale)","130123776","15/06/16","Visitor Economy","Bantock - Tea Rooms","R4102"
"Wolverhampton City Council","http://opendatacommunities.org/id/metropolitan-district-council/wolverhampton","Af Blakemore/Blakemore Foodservice","4648007","-451.71","Provisions (Resale)","130123776","15/06/16","Visitor Economy","Bantock - Tea Rooms","R4102"
"Wolverhampton City Council","http://opendatacommunities.org/id/metropolitan-district-council/wolverhampton","Af Blakemore/Blakemore Foodservice","4648007","276.14","Provisions (Resale)","130123776","15/06/16","Visitor Economy","Bantock - Tea Rooms","R4102"
"Wolverhampton City Council","http://opendatacommunities.org/id/metropolitan-district-council/wolverhampton","Af Blakemore/Blakemore Foodservice","4648007","175.57","Provisions (Resale)","130123776","15/06/16","Visitor Economy","Bantock - Tea Rooms","R4102"
"Wolverhampton City Council","http://opendatacommunities.org/id/metropolitan-district-council/wolverhampton","Af Blakemore/Blakemore Foodservice","4672936","517.23","Provisions (Resale)","130123782","15/06/16","Visitor Economy","Bantock - Tea Rooms","R4102"
"Wolverhampton City Council","http://opendatacommunities.org/id/metropolitan-district-council/wolverhampton","Af Blakemore/Blakemore Foodservice","4672936","-517.23","Provisions (Resale)","130123782","15/06/16","Visitor Economy","Bantock - Tea Rooms","R4102"
"Wolverhampton City Council","http://opendatacommunities.org/id/metropolitan-district-council/wolverhampton","Af Blakemore/Blakemore Foodservice","4672936","287.98","Provisions (Resale)","130123782","15/06/16","Visitor Economy","Bantock - Tea Rooms","R4102"
"Wolverhampton City Council","http://opendatacommunities.org/id/metropolitan-district-council/wolverhampton","Af Blakemore/Blakemore Foodservice","4672936","229.25","Provisions (Resale)","130123782","15/06/16","Visitor Economy","Bantock - Tea Rooms","R4102"
"Wolverhampton City Council","http://opendatacommunities.org/id/metropolitan-district-council/wolverhampton","Af Blakemore/Blakemore Foodservice","4682265","374.51","Provisions (Resale)","130123783","15/06/16","Visitor Economy","Bantock - Tea Rooms","R4102"
"Wolverhampton City Council","http://opendatacommunities.org/id/metropolitan-district-council/wolverhampton","Af Blakemore/Blakemore Foodservice","4682265","-374.51","Provisions (Resale)","130123783","15/06/16","Visitor Economy","Bantock - Tea Rooms","R4102"
"Wolverhampton City Council","http://opendatacommunities.org/id/metropolitan-district-council/wolverhampton","Af Blakemore/Blakemore Foodservice","4682265","314.69","Provisions (Resale)","130123783","15/06/16","Visitor Economy","Bantock - Tea Rooms","R4102"
"Wolverhampton City Council","http://opendatacommunities.org/id/metropolitan-district-council/wolverhampton","Af Blakemore/Blakemore Foodservice","4682265","59.82","Provisions (Resale)","130123783","15/06/16","Visitor Economy","Bantock - Tea Rooms","R4102"
"Wolverhampton City Council","http://opendatacommunities.org/id/metropolitan-district-council/wolverhampton","Af Blakemore/Blakemore Foodservice","4631037","357.83","Provisions (Resale)","130123774","15/06/16","Visitor Economy","Bantock - Tea Rooms","R4102"
"Wolverhampton City Council","http://opendatacommunities.org/id/metropolitan-district-council/wolverhampton","Af Blakemore/Blakemore Foodservice","4631037","-357.83","Provisions (Resale)","130123774","15/06/16","Visitor Economy","Bantock - Tea Rooms","R4102"
"Wolverhampton City Council","http://opendatacommunities.org/id/metropolitan-district-council/wolverhampton","Af Blakemore/Blakemore Foodservice","4692548","588.66","Provisions (Resale)","130123784","15/06/16","Visitor Economy","Bantock - Tea Rooms","R4102"
"Wolverhampton City Council","http://opendatacommunities.org/id/metropolitan-district-council/wolverhampton","Af Blakemore/Blakemore Foodservice","4692548","-588.66","Provisions (Resale)","130123784","15/06/16","Visitor Economy","Bantock - Tea Rooms","R4102"
"Wolverhampton City Council","http://opendatacommunities.org/id/metropolitan-district-council/wolverhampton","Af Blakemore/Blakemore Foodservice","4692548","351.87","Provisions (Resale)","130123784","15/06/16","Visitor Economy","Bantock - Tea Rooms","R4102"
"Wolverhampton City Council","http://opendatacommunities.org/id/metropolitan-district-council/wolverhampton","Af Blakemore/Blakemore Foodservice","4613762","610.79","Provisions (Resale)","130123772","15/06/16","Visitor Economy","Bantock - Tea Rooms","R4102"
"Wolverhampton City Council","http://opendatacommunities.org/id/metropolitan-district-council/wolverhampton","Af Blakemore/Blakemore Foodservice","4613762","-610.79","Provisions (Resale)","130123772","15/06/16","Visitor Economy","Bantock - Tea Rooms","R4102"
"Wolverhampton City Council","http://opendatacommunities.org/id/metropolitan-district-council/wolverhampton","Af Blakemore/Blakemore Foodservice","4613762","343.90","Provisions (Resale)","130123772","15/06/16","Visitor Economy","Bantock - Tea Rooms","R4102"
"Wolverhampton City Council","http://opendatacommunities.org/id/metropolitan-district-council/wolverhampton","Af Blakemore/Blakemore Foodservice","4613762","266.89","Provisions (Resale)","130123772","15/06/16","Visitor Economy","Bantock - Tea Rooms","R4102"
"Wolverhampton City Council","http://opendatacommunities.org/id/metropolitan-district-council/wolverhampton","Af Blakemore/Blakemore Foodservice","4604052","515.77","Provisions (Resale)","130123769","15/06/16","Visitor Economy","Bantock - Tea Rooms","R4102"
"Wolverhampton City Council","http://opendatacommunities.org/id/metropolitan-district-council/wolverhampton","Af Blakemore/Blakemore Foodservice","4604052","-515.77","Provisions (Resale)","130123769","15/06/16","Visitor Economy","Bantock - Tea Rooms","R4102"
"Wolverhampton City Council","http://opendatacommunities.org/id/metropolitan-district-council/wolverhampton","Af Blakemore/Blakemore Foodservice","4604052","294.39","Provisions (Resale)","130123769","15/06/16","Visitor Economy","Bantock - Tea Rooms","R4102"
"Wolverhampton City Council","http://opendatacommunities.org/id/metropolitan-district-council/wolverhampton","Af Blakemore/Blakemore Foodservice","4604052","221.38","Provisions (Resale)","130123769","15/06/16","Visitor Economy","Bantock - Tea Rooms","R4102"
"Wolverhampton City Council","http://opendatacommunities.org/id/metropolitan-district-council/wolverhampton","Af Blakemore/Blakemore Foodservice","4619473","524.99","Provisions (Resale)","130123773","15/06/16","Visitor Economy","Bantock - Tea Rooms","R4102"
"Wolverhampton City Council","http://opendatacommunities.org/id/metropolitan-district-council/wolverhampton","Af Blakemore/Blakemore Foodservice","4619473","-524.99","Provisions (Resale)","130123773","15/06/16","Visitor Economy","Bantock - Tea Rooms","R4102"
"Wolverhampton City Council","http://opendatacommunities.org/id/metropolitan-district-council/wolverhampton","Af Blakemore/Blakemore Foodservice","4619473","375.49","Provisions (Resale)","130123773","15/06/16","Visitor Economy","Bantock - Tea Rooms","R4102"
"Wolverhampton City Council","http://opendatacommunities.org/id/metropolitan-district-council/wolverhampton","Af Blakemore/Blakemore Foodservice","4619473","149.50","Provisions (Resale)","130123773","15/06/16","Visitor Economy","Bantock - Tea Rooms","R4102"
"Wolverhampton City Council","http://opendatacommunities.org/id/metropolitan-district-council/wolverhampton","Af Blakemore/Blakemore Foodservice","4756311","86.73","Provisions (Not for resale)","130123806","15/06/16","Learning Disability Provider","Duke Street Bungalows","R4101"
"Wolverhampton City Council","http://opendatacommunities.org/id/metropolitan-district-council/wolverhampton","Af Blakemore/Blakemore Foodservice","4692548","236.79","Provisions (Resale)","130123784","15/06/16","Visitor Economy","Bantock - Tea Rooms","R4102"
"Wolverhampton City Council","http://opendatacommunities.org/id/metropolitan-district-council/wolverhampton","Af Blakemore/Blakemore Foodservice","4631037","243.13","Provisions (Resale)","130123774","15/06/16","Visitor Economy","Bantock - Tea Rooms","R4102"
"Wolverhampton City Council","http://opendatacommunities.org/id/metropolitan-district-council/wolverhampton","Af Blakemore/Blakemore Foodservice","4631037","114.70","Provisions (Resale)","130123774","15/06/16","Visitor Economy","Bantock - Tea Rooms","R4102"
"Wolverhampton City Council","http://opendatacommunities.org/id/metropolitan-district-council/wolverhampton","Af Blakemore/Blakemore Foodservice","4640548","391.45","Provisions (Resale)","130123775","15/06/16","Visitor Economy","Bantock - Tea Rooms","R4102"
"Wolverhampton City Council","http://opendatacommunities.org/id/metropolitan-district-council/wolverhampton","Af Blakemore/Blakemore Foodservice","4710851","647.93","Provisions (Resale)","130123786","15/06/16","Visitor Economy","Bantock - Tea Rooms","R4102"
"Wolverhampton City Council","http://opendatacommunities.org/id/metropolitan-district-council/wolverhampton","Af Blakemore/Blakemore Foodservice","4710851","-647.93","Provisions (Resale)","130123786","15/06/16","Visitor Economy","Bantock - Tea Rooms","R4102"
"Wolverhampton City Council","http://opendatacommunities.org/id/metropolitan-district-council/wolverhampton","Af Blakemore/Blakemore Foodservice","4710851","272.58","Provisions (Resale)","130123786","15/06/16","Visitor Economy","Bantock - Tea Rooms","R4102"
"Wolverhampton City Council","http://opendatacommunities.org/id/metropolitan-district-council/wolverhampton","Af Blakemore/Blakemore Foodservice","4710851","375.35","Provisions (Resale)","130123786","15/06/16","Visitor Economy","Bantock - Tea Rooms","R4102"
"Wolverhampton City Council","http://opendatacommunities.org/id/metropolitan-district-council/wolverhampton","Af Blakemore/Blakemore Foodservice","4725330","526.29","Provisions (Resale)","130123789","15/06/16","Visitor Economy","Bantock - Tea Rooms","R4102"
"Wolverhampton City Council","http://opendatacommunities.org/id/metropolitan-district-council/wolverhampton","Af Blakemore/Blakemore Foodservice","4725330","-526.29","Provisions (Resale)","130123789","15/06/16","Visitor Economy","Bantock - Tea Rooms","R4102"
"Wolverhampton City Council","http://opendatacommunities.org/id/metropolitan-district-council/wolverhampton","Af Blakemore/Blakemore Foodservice","4747460","204.53","Provisions (Resale)","130123804","15/06/16","Visitor Economy","Bantock - Tea Rooms","R4102"
"Wolverhampton City Council","http://opendatacommunities.org/id/metropolitan-district-council/wolverhampton","Af Blakemore/Blakemore Foodservice","4758760","447.78","Provisions (Resale)","130123812","15/06/16","Visitor Economy","Bantock - Tea Rooms","R4102"
"Wolverhampton City Council","http://opendatacommunities.org/id/metropolitan-district-council/wolverhampton","Af Blakemore/Blakemore Foodservice","4758760","-447.78","Provisions (Resale)","130123812","15/06/16","Visitor Economy","Bantock - Tea Rooms","R4102"
"Wolverhampton City Council","http://opendatacommunities.org/id/metropolitan-district-council/wolverhampton","Af Blakemore/Blakemore Foodservice","4758760","201.64","Provisions (Resale)","130123812","15/06/16","Visitor Economy","Bantock - Tea Rooms","R4102"
"Wolverhampton City Council","http://opendatacommunities.org/id/metropolitan-district-council/wolverhampton","Af Blakemore/Blakemore Foodservice","4758760","246.14","Provisions (Resale)","130123812","15/06/16","Visitor Economy","Bantock - Tea Rooms","R4102"
"Wolverhampton City Council","http://opendatacommunities.org/id/metropolitan-district-council/wolverhampton","Af Blakemore/Blakemore Foodservice","4725330","398.44","Provisions (Resale)","130123789","15/06/16","Visitor Economy","Bantock - Tea Rooms","R4102"
"Wolverhampton City Council","http://opendatacommunities.org/id/metropolitan-district-council/wolverhampton","Af Blakemore/Blakemore Foodservice","5066764","34.57","Provisions (Not for resale)","130122139","03/06/16","Adult Education","Discretionary Fund","R4101"
"Wolverhampton City Council","http://opendatacommunities.org/id/metropolitan-district-council/wolverhampton","Af Blakemore/Blakemore Foodservice","WCC000138","497.91","Provisions (Resale)","130121660","10/06/16","Catering","Meals on Wheels","R4102"
"Wolverhampton City Council","http://opendatacommunities.org/id/metropolitan-district-council/wolverhampton","Af Blakemore/Blakemore Foodservice","WCC000138","-497.91","Provisions (Resale)","130121660","10/06/16","Catering","Meals on Wheels","R4102"
"Wolverhampton City Council","http://opendatacommunities.org/id/metropolitan-district-council/wolverhampton","Af Blakemore/Blakemore Foodservice","WCC000138","18.24","Provisions (Resale)","130121660","10/06/16","Catering","Meals on Wheels","R4102"
"Wolverhampton City Council","http://opendatacommunities.org/id/metropolitan-district-council/wolverhampton","Af Blakemore/Blakemore Foodservice","WCC000138","479.67","Provisions (Resale)","130121660","10/06/16","Catering","Meals on Wheels","R4102"
"Wolverhampton City Council","http://opendatacommunities.org/id/metropolitan-district-council/wolverhampton","Af Blakemore/Blakemore Foodservice","WCC000140","482.76","Provisions (Resale)","130121662","10/06/16","Catering","Bert Williams Leisure Centre Caf�","R4102"
"Wolverhampton City Council","http://opendatacommunities.org/id/metropolitan-district-council/wolverhampton","Af Blakemore/Blakemore Foodservice","WCC000140","-482.76","Provisions (Resale)","130121662","10/06/16","Catering","Bert Williams Leisure Centre Caf�","R4102"
"Wolverhampton City Council","http://opendatacommunities.org/id/metropolitan-district-council/wolverhampton","Af Blakemore/Blakemore Foodservice","WCC000140","461.79","Provisions (Resale)","130121662","10/06/16","Catering","Bert Williams Leisure Centre Caf�","R4102"
"Wolverhampton City Council","http://opendatacommunities.org/id/metropolitan-district-council/wolverhampton","Af Blakemore/Blakemore Foodservice","WCC000140","20.97","Provisions (Resale)","130121662","10/06/16","Catering","Bert Williams Leisure Centre Caf�","R4102"
"Wolverhampton City Council","http://opendatacommunities.org/id/metropolitan-district-council/wolverhampton","Af Blakemore/Blakemore Foodservice","WCC000139","542.46","Provisions (Resale)","130121661","10/06/16","Catering","Bert Williams Leisure Centre Caf�","R4102"
"Wolverhampton City Council","http://opendatacommunities.org/id/metropolitan-district-council/wolverhampton","Af Blakemore/Blakemore Foodservice","WCC000142","2,608.47","Provisions (Resale)","130121664","10/06/16","Catering","Civic Centre Catering","R4102"
"Wolverhampton City Council","http://opendatacommunities.org/id/metropolitan-district-council/wolverhampton","Af Blakemore/Blakemore Foodservice","WCC000142","-2,608.47","Provisions (Resale)","130121664","10/06/16","Catering","Civic Centre Catering","R4102"
"Wolverhampton City Council","http://opendatacommunities.org/id/metropolitan-district-council/wolverhampton","Af Blakemore/Blakemore Foodservice","WCC000142","1,126.30","Provisions (Resale)","130121664","10/06/16","Catering","Civic Centre Catering","R4102"
"Wolverhampton City Council","http://opendatacommunities.org/id/metropolitan-district-council/wolverhampton","Af Blakemore/Blakemore Foodservice","WCC000142","1,482.17","Provisions (Resale)","130121664","10/06/16","Catering","Civic Centre Catering","R4102"
"Wolverhampton City Council","http://opendatacommunities.org/id/metropolitan-district-council/wolverhampton","Af Blakemore/Blakemore Foodservice","WCC000139","1,141.87","Provisions (Resale)","130121661","10/06/16","Catering","Bert Williams Leisure Centre Caf�","R4102"
"Wolverhampton City Council","http://opendatacommunities.org/id/metropolitan-district-council/wolverhampton","Af Blakemore/Blakemore Foodservice","WCC000139","-1,141.87","Provisions (Resale)","130121661","10/06/16","Catering","Bert Williams Leisure Centre Caf�","R4102"
"Wolverhampton City Council","http://opendatacommunities.org/id/metropolitan-district-council/wolverhampton","Af Blakemore/Blakemore Foodservice","WCC000139","599.40","Provisions (Resale)","130121661","10/06/16","Catering","Bert Williams Leisure Centre Caf�","R4102"
"Wolverhampton City Council","http://opendatacommunities.org/id/metropolitan-district-council/wolverhampton","Af Blakemore/Blakemore Foodservice","WCC000134","585.25","Provisions (Not for resale)","130121264","10/06/16","Leisure Services","WV Active Catering","R4101"
"Wolverhampton City Council","http://opendatacommunities.org/id/metropolitan-district-council/wolverhampton","Af Blakemore/Blakemore Foodservice","WCC000134","-585.25","Provisions (Not for resale)","130121264","10/06/16","Leisure Services","WV Active Catering","R4101"
"Wolverhampton City Council","http://opendatacommunities.org/id/metropolitan-district-council/wolverhampton","Af Blakemore/Blakemore Foodservice","WCC000134","174.77","Provisions (Not for resale)","130121264","10/06/16","Leisure Services","WV Active Catering","R4101"
"Wolverhampton City Council","http://opendatacommunities.org/id/metropolitan-district-council/wolverhampton","Af Blakemore/Blakemore Foodservice","WCC000134","410.48","Provisions (Not for resale)","130121264","10/06/16","Leisure Services","WV Active Catering","R4101"
"Wolverhampton City Council","http://opendatacommunities.org/id/metropolitan-district-council/wolverhampton","Af Blakemore/Blakemore Foodservice","WCC000135","25.23","Provisions (Not for resale)","130121265","10/06/16","Leisure Services","WV Active Catering","R4101"
"Wolverhampton City Council","http://opendatacommunities.org/id/metropolitan-district-council/wolverhampton","Af Blakemore/Blakemore Foodservice","WCC000141","831.40","Provisions (Resale)","130121663","10/06/16","Catering","Civic Centre Catering","R4102"
"Wolverhampton City Council","http://opendatacommunities.org/id/metropolitan-district-council/wolverhampton","Af Blakemore/Blakemore Foodservice","WCA000021","1,776.34","Provisions (Not for resale)","130121263","10/06/16","Leisure Services","WV Active Catering","R4101"
"Wolverhampton City Council","http://opendatacommunities.org/id/metropolitan-district-council/wolverhampton","Af Blakemore/Blakemore Foodservice","WCA000021","-1,776.34","Provisions (Not for resale)","130121263","10/06/16","Leisure Services","WV Active Catering","R4101"
"Wolverhampton City Council","http://opendatacommunities.org/id/metropolitan-district-council/wolverhampton","Af Blakemore/Blakemore Foodservice","WCA000021","382.66","Provisions (Not for resale)","130121263","10/06/16","Leisure Services","WV Active Catering","R4101"
"Wolverhampton City Council","http://opendatacommunities.org/id/metropolitan-district-council/wolverhampton","Af Blakemore/Blakemore Foodservice","WCA000021","1,393.68","Provisions (Not for resale)","130121263","10/06/16","Leisure Services","WV Active Catering","R4101"
"Wolverhampton City Council","http://opendatacommunities.org/id/metropolitan-district-council/wolverhampton","Af Blakemore/Blakemore Foodservice","WCC000136","87,751.47","Provisions (Resale)","130121658","10/06/16","Catering","Education Catering - General Overheads","R4102"
"Wolverhampton City Council","http://opendatacommunities.org/id/metropolitan-district-council/wolverhampton","Af Blakemore/Blakemore Foodservice","WCC000136","-87,751.47","Provisions (Resale)","130121658","10/06/16","Catering","Education Catering - General Overheads","R4102"
"Wolverhampton City Council","http://opendatacommunities.org/id/metropolitan-district-council/wolverhampton","Af Blakemore/Blakemore Foodservice","WCC000136","97.46","Provisions (Resale)","130121658","10/06/16","Catering","Education Catering - General Overheads","R4102"
"Wolverhampton City Council","http://opendatacommunities.org/id/metropolitan-district-council/wolverhampton","Af Blakemore/Blakemore Foodservice","WCC000136","87,654.01","Provisions (Resale)","130121658","10/06/16","Catering","Education Catering - General Overheads","R4102"
"Wolverhampton City Council","http://opendatacommunities.org/id/metropolitan-district-council/wolverhampton","Af Blakemore/Blakemore Foodservice","WCC000137","55,936.03","Provisions (Resale)","130121659","10/06/16","Catering","Education Catering - General Overheads","R4102"
"Wolverhampton City Council","http://opendatacommunities.org/id/metropolitan-district-council/wolverhampton","Af Blakemore/Blakemore Foodservice","WCC000137","-55,936.03","Provisions (Resale)","130121659","10/06/16","Catering","Education Catering - General Overheads","R4102"
"Wolverhampton City Council","http://opendatacommunities.org/id/metropolitan-district-council/wolverhampton","Af Blakemore/Blakemore Foodservice","WCC000137","48,915.38","Provisions (Resale)","130121659","10/06/16","Catering","Education Catering - General Overheads","R4102"
"Wolverhampton City Council","http://opendatacommunities.org/id/metropolitan-district-council/wolverhampton","Af Blakemore/Blakemore Foodservice","WCC000137","7,020.75","Provisions (Resale)","130121659","10/06/16","Catering","Education Catering - General Overheads","R4102"
"Wolverhampton City Council","http://opendatacommunities.org/id/metropolitan-district-council/wolverhampton","Af Blakemore/Blakemore Foodservice","4609579","164.95","Provisions (Resale)","130123770","24/06/16","Learning Disability Provider","Duke Street Bungalows","R4102"
"Wolverhampton City Council","http://opendatacommunities.org/id/metropolitan-district-council/wolverhampton","Af Blakemore/Blakemore Foodservice","4609579","-164.95","Provisions (Resale)","130123770","24/06/16","Learning Disability Provider","Duke Street Bungalows","R4102"
"Wolverhampton City Council","http://opendatacommunities.org/id/metropolitan-district-council/wolverhampton","Af Blakemore/Blakemore Foodservice","4609579","159.93","Provisions (Resale)","130123770","24/06/16","Learning Disability Provider","Duke Street Bungalows","R4102"
"Wolverhampton City Council","http://opendatacommunities.org/id/metropolitan-district-council/wolverhampton","Af Blakemore/Blakemore Foodservice","4609579","5.02","Provisions (Resale)","130123770","24/06/16","Learning Disability Provider","Duke Street Bungalows","R4102"
"Wolverhampton City Council","http://opendatacommunities.org/id/metropolitan-district-council/wolverhampton","Af Blakemore/Blakemore Foodservice","4716532","178.75","Provisions (Not for resale)","130123787","24/06/16","Learning Disability Provider","Duke Street Bungalows","R4101"
"Wolverhampton City Council","http://opendatacommunities.org/id/metropolitan-district-council/wolverhampton","Af Blakemore/Blakemore Foodservice","4559683","96.68","Provisions (Resale)","130123768","24/06/16","Learning Disability Provider","Duke Street Bungalows","R4102"
"Wolverhampton City Council","http://opendatacommunities.org/id/metropolitan-district-council/wolverhampton","Af Blakemore/Blakemore Foodservice","4559683","-96.68","Provisions (Resale)","130123768","24/06/16","Learning Disability Provider","Duke Street Bungalows","R4102"
"Wolverhampton City Council","http://opendatacommunities.org/id/metropolitan-district-council/wolverhampton","Af Blakemore/Blakemore Foodservice","4559683","94.93","Provisions (Resale)","130123768","24/06/16","Learning Disability Provider","Duke Street Bungalows","R4102"
"Wolverhampton City Council","http://opendatacommunities.org/id/metropolitan-district-council/wolverhampton","Af Blakemore/Blakemore Foodservice","4559683","1.75","Provisions (Resale)","130123768","24/06/16","Learning Disability Provider","Duke Street Bungalows","R4102"
"Wolverhampton City Council","http://opendatacommunities.org/id/metropolitan-district-council/wolverhampton","Af Blakemore/Blakemore Foodservice","4745952","80.68","Provisions (Not for resale)","130123801","24/06/16","Learning Disability Provider","Duke Street Bungalows","R4101"
"Wolverhampton City Council","http://opendatacommunities.org/id/metropolitan-district-council/wolverhampton","Af Blakemore/Blakemore Foodservice","4745952","-80.68","Provisions (Not for resale)","130123801","24/06/16","Learning Disability Provider","Duke Street Bungalows","R4101"
"Wolverhampton City Council","http://opendatacommunities.org/id/metropolitan-district-council/wolverhampton","Af Blakemore/Blakemore Foodservice","4745952","77.18","Provisions (Not for resale)","130123801","24/06/16","Learning Disability Provider","Duke Street Bungalows","R4101"
"Wolverhampton City Council","http://opendatacommunities.org/id/metropolitan-district-council/wolverhampton","Af Blakemore/Blakemore Foodservice","4745952","3.50","Provisions (Not for resale)","130123801","24/06/16","Learning Disability Provider","Duke Street Bungalows","R4101"
"Wolverhampton City Council","http://opendatacommunities.org/id/metropolitan-district-council/wolverhampton","Af Blakemore/Blakemore Foodservice","4751974","253.36","Provisions (Resale)","130126012","24/06/16","Visitor Economy","Bantock - Tea Rooms","R4102"
"Wolverhampton City Council","http://opendatacommunities.org/id/metropolitan-district-council/wolverhampton","Af Blakemore/Blakemore Foodservice","4751974","228.66","Provisions (Resale)","130126012","24/06/16","Visitor Economy","Bantock - Tea Rooms","R4102"
"Wolverhampton City Council","http://opendatacommunities.org/id/metropolitan-district-council/wolverhampton","Af Blakemore/Blakemore Foodservice","4740435","78.94","Provisions (Not for resale)","130123590","22/06/16","Learning Disability Provider","Duke Street Bungalows","R4101"
"Wolverhampton City Council","http://opendatacommunities.org/id/metropolitan-district-council/wolverhampton","Af Blakemore/Blakemore Foodservice","4610499","55.40","Provisions (Resale)","130123771","22/06/16","Learning Disability Provider","Duke Street Bungalows","R4102"
"Wolverhampton City Council","http://opendatacommunities.org/id/metropolitan-district-council/wolverhampton","Af Blakemore/Blakemore Foodservice","4745964","262.15","Provisions (Not for resale)","130123802","22/06/16","Learning Disability Provider","Duke Street Bungalows","R4101"
"Wolverhampton City Council","http://opendatacommunities.org/id/metropolitan-district-council/wolverhampton","Af Blakemore/Blakemore Foodservice","4745964","19.96","Provisions (Not for resale)","130123802","22/06/16","Learning Disability Provider","Duke Street Bungalows","R4101"
"Wolverhampton City Council","http://opendatacommunities.org/id/metropolitan-district-council/wolverhampton","Af Blakemore/Blakemore Foodservice","4400272","152.58","Provisions (Resale)","130123765","22/06/16","Learning Disability Provider","Duke Street Bungalows","R4102"
"Wolverhampton City Council","http://opendatacommunities.org/id/metropolitan-district-council/wolverhampton","Af Blakemore/Blakemore Foodservice","4400272","-152.58","Provisions (Resale)","130123765","22/06/16","Learning Disability Provider","Duke Street Bungalows","R4102"
"Wolverhampton City Council","http://opendatacommunities.org/id/metropolitan-district-council/wolverhampton","Af Blakemore/Blakemore Foodservice","4400272","149.08","Provisions (Resale)","130123765","22/06/16","Learning Disability Provider","Duke Street Bungalows","R4102"
"Wolverhampton City Council","http://opendatacommunities.org/id/metropolitan-district-council/wolverhampton","Af Blakemore/Blakemore Foodservice","4400272","3.50","Provisions (Resale)","130123765","22/06/16","Learning Disability Provider","Duke Street Bungalows","R4102"
"Wolverhampton City Council","http://opendatacommunities.org/id/metropolitan-district-council/wolverhampton","Af Blakemore/Blakemore Foodservice","4653711","126.34","Provisions (Resale)","130123777","22/06/16","Learning Disability Provider","Duke Street Bungalows","R4102"
"Wolverhampton City Council","http://opendatacommunities.org/id/metropolitan-district-council/wolverhampton","Af Blakemore/Blakemore Foodservice","4657592","103.27","Provisions (Resale)","130123779","22/06/16","Learning Disability Provider","Duke Street Bungalows","R4102"
"Wolverhampton City Council","http://opendatacommunities.org/id/metropolitan-district-council/wolverhampton","Af Blakemore/Blakemore Foodservice","4657592","-103.27","Provisions (Resale)","130123779","22/06/16","Learning Disability Provider","Duke Street Bungalows","R4102"
"Wolverhampton City Council","http://opendatacommunities.org/id/metropolitan-district-council/wolverhampton","Af Blakemore/Blakemore Foodservice","4657592","98.25","Provisions (Resale)","130123779","22/06/16","Learning Disability Provider","Duke Street Bungalows","R4102"
"Wolverhampton City Council","http://opendatacommunities.org/id/metropolitan-district-council/wolverhampton","Af Blakemore/Blakemore Foodservice","4657592","5.02","Provisions (Resale)","130123779","22/06/16","Learning Disability Provider","Duke Street Bungalows","R4102"
"Wolverhampton City Council","http://opendatacommunities.org/id/metropolitan-district-council/wolverhampton","Af Blakemore/Blakemore Foodservice","4745964","282.11","Provisions (Not for resale)","130123802","22/06/16","Learning Disability Provider","Duke Street Bungalows","R4101"
"Wolverhampton City Council","http://opendatacommunities.org/id/metropolitan-district-council/wolverhampton","Af Blakemore/Blakemore Foodservice","4745964","-282.11","Provisions (Not for resale)","130123802","22/06/16","Learning Disability Provider","Duke Street Bungalows","R4101"
"Wolverhampton City Council","http://opendatacommunities.org/id/metropolitan-district-council/wolverhampton","Af Blakemore/Blakemore Foodservice","4716973","123.87","Provisions (Not for resale)","130123788","22/06/16","Learning Disability Provider","Duke Street Bungalows","R4101"
"Wolverhampton City Council","http://opendatacommunities.org/id/metropolitan-district-council/wolverhampton","Af Blakemore/Blakemore Foodservice","4716973","-123.87","Provisions (Not for resale)","130123788","22/06/16","Learning Disability Provider","Duke Street Bungalows","R4101"
"Wolverhampton City Council","http://opendatacommunities.org/id/metropolitan-district-council/wolverhampton","Af Blakemore/Blakemore Foodservice","4716973","122.12","Provisions (Not for resale)","130123788","22/06/16","Learning Disability Provider","Duke Street Bungalows","R4101"
"Wolverhampton City Council","http://opendatacommunities.org/id/metropolitan-district-council/wolverhampton","Af Blakemore/Blakemore Foodservice","4716973","1.75","Provisions (Not for resale)","130123788","22/06/16","Learning Disability Provider","Duke Street Bungalows","R4101"
"Wolverhampton City Council","http://opendatacommunities.org/id/metropolitan-district-council/wolverhampton","Af Blakemore/Blakemore Foodservice","4735436","90.34","Provisions (Not for resale)","130123793","22/06/16","Learning Disability Provider","Duke Street Bungalows","R4101"
"Wolverhampton City Council","http://opendatacommunities.org/id/metropolitan-district-council/wolverhampton","Af Blakemore/Blakemore Foodservice","4735436","-90.34","Provisions (Not for resale)","130123793","22/06/16","Learning Disability Provider","Duke Street Bungalows","R4101"
"Wolverhampton City Council","http://opendatacommunities.org/id/metropolitan-district-council/wolverhampton","Af Blakemore/Blakemore Foodservice","4735436","1.75","Provisions (Not for resale)","130123793","22/06/16","Learning Disability Provider","Duke Street Bungalows","R4101"
"Wolverhampton City Council","http://opendatacommunities.org/id/metropolitan-district-council/wolverhampton","Af Blakemore/Blakemore Foodservice","4735436","88.59","Provisions (Not for resale)","130123793","22/06/16","Learning Disability Provider","Duke Street Bungalows","R4101"
"Wolverhampton City Council","http://opendatacommunities.org/id/metropolitan-district-council/wolverhampton","Af Blakemore/Blakemore Foodservice","4740436","85.66","Provisions (Not for resale)","130123797","22/06/16","Learning Disability Provider","Duke Street Bungalows","R4101"
"Wolverhampton City Council","http://opendatacommunities.org/id/metropolitan-district-council/wolverhampton","Af Blakemore/Blakemore Foodservice","4740436","-85.66","Provisions (Not for resale)","130123797","22/06/16","Learning Disability Provider","Duke Street Bungalows","R4101"
"Wolverhampton City Council","http://opendatacommunities.org/id/metropolitan-district-council/wolverhampton","Af Blakemore/Blakemore Foodservice","4740436","13.84","Provisions (Not for resale)","130123797","22/06/16","Learning Disability Provider","Duke Street Bungalows","R4101"
"Wolverhampton City Council","http://opendatacommunities.org/id/metropolitan-district-council/wolverhampton","Af Blakemore/Blakemore Foodservice","4740436","71.82","Provisions (Not for resale)","130123797","22/06/16","Learning Disability Provider","Duke Street Bungalows","R4101"
"Wolverhampton City Council","http://opendatacommunities.org/id/metropolitan-district-council/wolverhampton","Af Blakemore/Blakemore Foodservice","4756321","279.07","Provisions (Not for resale)","130123807","22/06/16","Learning Disability Provider","Duke Street Bungalows","R4101"
"Wolverhampton City Council","http://opendatacommunities.org/id/metropolitan-district-council/wolverhampton","Af Blakemore/Blakemore Foodservice","4756321","-279.07","Provisions (Not for resale)","130123807","22/06/16","Learning Disability Provider","Duke Street Bungalows","R4101"
"Wolverhampton City Council","http://opendatacommunities.org/id/metropolitan-district-council/wolverhampton","Af Blakemore/Blakemore Foodservice","4756321","167.73","Provisions (Not for resale)","130123807","22/06/16","Learning Disability Provider","Duke Street Bungalows","R4101"
"Wolverhampton City Council","http://opendatacommunities.org/id/metropolitan-district-council/wolverhampton","Af Blakemore/Blakemore Foodservice","4756321","111.34","Provisions (Not for resale)","130123807","22/06/16","Learning Disability Provider","Duke Street Bungalows","R4101"
"Wolverhampton City Council","http://opendatacommunities.org/id/metropolitan-district-council/wolverhampton","Af Blakemore/Blakemore Foodservice","4745612","150.21","Provisions (Not for resale)","130123800","22/06/16","Learning Disability Provider","Duke Street Bungalows","R4101"
"Wolverhampton City Council","http://opendatacommunities.org/id/metropolitan-district-council/wolverhampton","Af Blakemore/Blakemore Foodservice","4890580","30.31","Provisions (Resale)","130107484","22/06/16","Older People Provider Services","Bradley Lodge Resource Centre","R4102"
"Wolverhampton City Council","http://opendatacommunities.org/id/metropolitan-district-council/wolverhampton","Af Blakemore/Blakemore Foodservice","4655816","321.14","Provisions (Resale)","130123778","29/06/16","Visitor Economy","Bantock - Tea Rooms","R4102"
"Wolverhampton City Council","http://opendatacommunities.org/id/metropolitan-district-council/wolverhampton","Af Blakemore/Blakemore Foodservice","4655816","-321.14","Provisions (Resale)","130123778","29/06/16","Visitor Economy","Bantock - Tea Rooms","R4102"
"Wolverhampton City Council","http://opendatacommunities.org/id/metropolitan-district-council/wolverhampton","Af Blakemore/Blakemore Foodservice","4655816","164.45","Provisions (Resale)","130123778","29/06/16","Visitor Economy","Bantock - Tea Rooms","R4102"
"Wolverhampton City Council","http://opendatacommunities.org/id/metropolitan-district-council/wolverhampton","Af Blakemore/Blakemore Foodservice","4655816","156.69","Provisions (Resale)","130123778","29/06/16","Visitor Economy","Bantock - Tea Rooms","R4102"
"Wolverhampton City Council","http://opendatacommunities.org/id/metropolitan-district-council/wolverhampton","Af Blakemore/Blakemore Foodservice","4827899","53.17","Provisions (Resale)","130126496","29/06/16","Learning Disability Provider","Community Enablement","R4102"
"Wolverhampton City Council","http://opendatacommunities.org/id/metropolitan-district-council/wolverhampton","Af Blakemore/Blakemore Foodservice","4796027","3.81","Provisions (Resale)","130126485","29/06/16","Learning Disability Provider","Community Enablement","R4102"
"Wolverhampton City Council","http://opendatacommunities.org/id/metropolitan-district-council/wolverhampton","Af Blakemore/Blakemore Foodservice","4741992","434.66","Provisions (Resale)","130123798","29/06/16","Visitor Economy","Bantock - Tea Rooms","R4102"
"Wolverhampton City Council","http://opendatacommunities.org/id/metropolitan-district-council/wolverhampton","Af Blakemore/Blakemore Foodservice","4741992","-434.66","Provisions (Resale)","130123798","29/06/16","Visitor Economy","Bantock - Tea Rooms","R4102"
"Wolverhampton City Council","http://opendatacommunities.org/id/metropolitan-district-council/wolverhampton","Af Blakemore/Blakemore Foodservice","4741992","246.25","Provisions (Resale)","130123798","29/06/16","Visitor Economy","Bantock - Tea Rooms","R4102"
"Wolverhampton City Council","http://opendatacommunities.org/id/metropolitan-district-council/wolverhampton","Af Blakemore/Blakemore Foodservice","4741992","188.41","Provisions (Resale)","130123798","29/06/16","Visitor Economy","Bantock - Tea Rooms","R4102"
"Wolverhampton City Council","http://opendatacommunities.org/id/metropolitan-district-council/wolverhampton","Af Blakemore/Blakemore Foodservice","4832044","3.14","Provisions (Resale)","130126709","29/06/16","Older People Provider Services","Ekta Day Centre","R4102"
"Wolverhampton City Council","http://opendatacommunities.org/id/metropolitan-district-council/wolverhampton","Af Blakemore/Blakemore Foodservice","4824472","6.28","Provisions (Resale)","130126707","29/06/16","Older People Provider Services","Ekta Day Centre","R4102"
"Wolverhampton City Council","http://opendatacommunities.org/id/metropolitan-district-council/wolverhampton","Af Blakemore/Blakemore Foodservice","4785980","3.14","Provisions (Resale)","130126691","29/06/16","Older People Provider Services","Ekta Day Centre","R4102"
"Wolverhampton City Council","http://opendatacommunities.org/id/metropolitan-district-council/wolverhampton","Af Blakemore/Blakemore Foodservice","4901662","3.14","Provisions (Resale)","130126746","29/06/16","Older People Provider Services","Ekta Day Centre","R4102"
"Wolverhampton City Council","http://opendatacommunities.org/id/metropolitan-district-council/wolverhampton","Af Blakemore/Blakemore Foodservice","4850547","6.28","Provisions (Resale)","130126715","29/06/16","Older People Provider Services","Ekta Day Centre","R4102"
"Wolverhampton City Council","http://opendatacommunities.org/id/metropolitan-district-council/wolverhampton","Af Blakemore/Blakemore Foodservice","4936148","3.14","Provisions (Resale)","130126771","29/06/16","Older People Provider Services","Ekta Day Centre","R4102"
"Wolverhampton City Council","http://opendatacommunities.org/id/metropolitan-district-council/wolverhampton","Af Blakemore/Blakemore Foodservice","4664144","330.62","Provisions (Resale)","130123780","29/06/16","Visitor Economy","Bantock - Tea Rooms","R4102"
"Wolverhampton City Council","http://opendatacommunities.org/id/metropolitan-district-council/wolverhampton","Af Blakemore/Blakemore Foodservice","4664144","-330.62","Provisions (Resale)","130123780","29/06/16","Visitor Economy","Bantock - Tea Rooms","R4102"
"Wolverhampton City Council","http://opendatacommunities.org/id/metropolitan-district-council/wolverhampton","Af Blakemore/Blakemore Foodservice","4664144","255.73","Provisions (Resale)","130123780","29/06/16","Visitor Economy","Bantock - Tea Rooms","R4102"
"Wolverhampton City Council","http://opendatacommunities.org/id/metropolitan-district-council/wolverhampton","Af Blakemore/Blakemore Foodservice","4664144","74.89","Provisions (Resale)","130123780","29/06/16","Visitor Economy","Bantock - Tea Rooms","R4102"
"Wolverhampton City Council","http://opendatacommunities.org/id/metropolitan-district-council/wolverhampton","Af Blakemore/Blakemore Foodservice","4701349","448.16","Provisions (Resale)","130123785","29/06/16","Visitor Economy","Bantock - Tea Rooms","R4102"
"Wolverhampton City Council","http://opendatacommunities.org/id/metropolitan-district-council/wolverhampton","Af Blakemore/Blakemore Foodservice","4701349","-448.16","Provisions (Resale)","130123785","29/06/16","Visitor Economy","Bantock - Tea Rooms","R4102"
"Wolverhampton City Council","http://opendatacommunities.org/id/metropolitan-district-council/wolverhampton","Af Blakemore/Blakemore Foodservice","4701349","317.26","Provisions (Resale)","130123785","29/06/16","Visitor Economy","Bantock - Tea Rooms","R4102"
"Wolverhampton City Council","http://opendatacommunities.org/id/metropolitan-district-council/wolverhampton","Af Blakemore/Blakemore Foodservice","4701349","130.90","Provisions (Resale)","130123785","29/06/16","Visitor Economy","Bantock - Tea Rooms","R4102"
"Wolverhampton City Council","http://opendatacommunities.org/id/metropolitan-district-council/wolverhampton","Af Blakemore/Blakemore Foodservice","4750340","80.19","Provisions (Resale)","130123591","29/06/16","Visitor Economy","Bantock - Tea Rooms","R4102"
"Wolverhampton City Council","http://opendatacommunities.org/id/metropolitan-district-council/wolverhampton","Af Blakemore/Blakemore Foodservice","4669143","90.62","Provisions (Resale)","130123781","17/06/16","Learning Disability Provider","Community Access & Leisure - North","R4102"
"Wolverhampton City Council","http://opendatacommunities.org/id/metropolitan-district-council/wolverhampton","Agilisys Limited","1220101","6,600.00","Computing - Purchase of Software","130120153","10/06/16","Revenues & Benefits","Debt Management","R4531"
"Wolverhampton City Council","http://opendatacommunities.org/id/metropolitan-district-council/wolverhampton","Aidapt Bathrooms Limited","244037","49.50","Equipment - Purchase","130123747","10/06/16","Independent Living Service","Independent Living Service","R4000"
"Wolverhampton City Council","http://opendatacommunities.org/id/metropolitan-district-council/wolverhampton","Aidapt Bathrooms Limited","244036","1,592.00","Equipment - Purchase","130123746","10/06/16","Independent Living Service","Independent Living Service","R4000"
"Wolverhampton City Council","http://opendatacommunities.org/id/metropolitan-district-council/wolverhampton","Aidapt Bathrooms Limited","246565","1,592.00","Equipment - Purchase","130125988","24/06/16","Independent Living Service","Independent Living Service","R4000"
"Wolverhampton City Council","http://opendatacommunities.org/id/metropolitan-district-council/wolverhampton","Aidapt Bathrooms Limited","246566","49.50","Equipment - Purchase","130125989","24/06/16","Independent Living Service","Independent Living Service","R4000"
"Wolverhampton City Council","http://opendatacommunities.org/id/metropolitan-district-council/wolverhampton","Aidservice Limited","90558","164.00","Equipment - Purchase","130124244","24/06/16","Independent Living Service","Independent Living Service","R4000"
"Wolverhampton City Council","http://opendatacommunities.org/id/metropolitan-district-council/wolverhampton","Aidservice Limited","90523","549.00","Equipment - Purchase","130124241","22/06/16","Independent Living Service","Independent Living Service","R4000"
"Wolverhampton City Council","http://opendatacommunities.org/id/metropolitan-district-council/wolverhampton","Aidservice Limited","90559","164.00","Equipment - Purchase","130124245","24/06/16","Independent Living Service","Independent Living Service","R4000"
"Wolverhampton City Council","http://opendatacommunities.org/id/metropolitan-district-council/wolverhampton","Aidservice Limited","90446","298.10","Equipment - Purchase","130121555","08/06/16","Independent Living Service","Independent Living Service","R4000"
"Wolverhampton City Council","http://opendatacommunities.org/id/metropolitan-district-council/wolverhampton","Aidservice Limited","90514","1,040.00","Equipment - Purchase","130122831","15/06/16","Independent Living Service","Independent Living Service","R4000"
"Wolverhampton City Council","http://opendatacommunities.org/id/metropolitan-district-council/wolverhampton","Aidservice Limited","90508","389.30","Equipment - Purchase","130122830","15/06/16","Independent Living Service","Independent Living Service","R4000"
"Wolverhampton City Council","http://opendatacommunities.org/id/metropolitan-district-council/wolverhampton","Aidservice Limited","90416","212.00","Equipment - Purchase","130121554","03/06/16","Independent Living Service","Independent Living Service","R4000"
"Wolverhampton City Council","http://opendatacommunities.org/id/metropolitan-district-council/wolverhampton","Air Methods Limited","SI000287","145.55","Equipment - R & M","190243994","22/06/16","Fleet Services","Fleet Management","R4003"
"Wolverhampton City Council","http://opendatacommunities.org/id/metropolitan-district-council/wolverhampton","Air Methods Limited","SI000286","154.93","Equipment - R & M","190243993","22/06/16","Fleet Services","Fleet Management","R4003"
"Wolverhampton City Council","http://opendatacommunities.org/id/metropolitan-district-council/wolverhampton","Air Methods Limited","SI000286","250.60","Equipment - R & M","190243993","22/06/16","Fleet Services","Fleet Management","R4003"
"Wolverhampton City Council","http://opendatacommunities.org/id/metropolitan-district-council/wolverhampton","Air Methods Limited","SI000288","94.87","Equipment - R & M","190243995","22/06/16","Fleet Services","Fleet Management","R4003"
"Wolverhampton City Council","http://opendatacommunities.org/id/metropolitan-district-council/wolverhampton","Airport Express West Midlands Limited","1346","1,400.00","Client Transport","130122962","03/06/16","School Planning & Resources","Secondary- Transport","R3042"
"Wolverhampton City Council","http://opendatacommunities.org/id/metropolitan-district-council/wolverhampton","Airport Express West Midlands Limited","1345","1,440.00","Client Transport","130122961","03/06/16","School Planning & Resources","Special - Transport","R3042"
"Wolverhampton City Council","http://opendatacommunities.org/id/metropolitan-district-council/wolverhampton","Airport Express West Midlands Limited","1344","875.00","Client Transport","130123526","08/06/16","School Planning & Resources","Special - Transport","R3042"
"Wolverhampton City Council","http://opendatacommunities.org/id/metropolitan-district-council/wolverhampton","Aldersley Church Early Learning Committee","NEF Sum 16 Inst 1","4,051.40","TPP - Private Nursery Education Funding","190238616","03/06/16","Childrens Centres & Early Years","Early Years Non Maintained Schools","R5035"
"Wolverhampton City Council","http://opendatacommunities.org/id/metropolitan-district-council/wolverhampton","Aldersley Church Early Learning Committee","T42 Sum 16 Inst 1","4,384.80","Grant Payments","190238621","03/06/16","Childrens Centres & Early Years","2 Year Olds Pilot - Early Learning & Childcare","R4700"
"Wolverhampton City Council","http://opendatacommunities.org/id/metropolitan-district-council/wolverhampton","Aldersley High Sch/Aldersley Acad Tr","PSS 151624","225.00","Use of Leisure Facilities","130123174","03/06/16","Schools","Dunstall Hill Primary School","R4410"
"Wolverhampton City Council","http://opendatacommunities.org/id/metropolitan-district-council/wolverhampton","Aldersley High Sch/Aldersley Acad Tr","INV0172","165.00","Training Expenses","130123172","03/06/16","Schools","Dunstall Hill Primary School","R1650"
"Wolverhampton City Council","http://opendatacommunities.org/id/metropolitan-district-council/wolverhampton","Aldersley High Sch/Aldersley Acad Tr","INV0176","4,853.78","Services - Professional Fees","130123173","03/06/16","Schools","Dunstall Hill Primary School","R4400"
"Wolverhampton City Council","http://opendatacommunities.org/id/metropolitan-district-council/wolverhampton","Aldersley High Sch/Aldersley Acad Tr","Parent Ambassador Costs","560.00","Services - Professional Fees","190245358","29/06/16","Standards and Vulnerable Pupils","New Arrivals","R4400"
"Wolverhampton City Council","http://opendatacommunities.org/id/metropolitan-district-council/wolverhampton","Aldridge School - A Science College","P12169920160627","600.00","Grant Payments to Individuals","190245323","29/06/16","Looked After Children","LAC Education Team (LACE)","R6402"
"Wolverhampton City Council","http://opendatacommunities.org/id/metropolitan-district-council/wolverhampton","Alexander Dennis Limited","817711","62.95","Equipment - Purchase","190244525","24/06/16","Fleet Services","Fleet Management","R4000"
"Wolverhampton City Council","http://opendatacommunities.org/id/metropolitan-district-council/wolverhampton","Alexander Dennis Limited","817711","12.04","Equipment - Purchase","190244525","24/06/16","Fleet Services","Fleet Management","R4000"
"Wolverhampton City Council","http://opendatacommunities.org/id/metropolitan-district-council/wolverhampton","Alexander Dennis Limited","817711","6.18","Equipment - Purchase","190244525","24/06/16","Fleet Services","Fleet Management","R4000"
"Wolverhampton City Council","http://opendatacommunities.org/id/metropolitan-district-council/wolverhampton","Alexander Dennis Limited","817711","23.34","Equipment - Purchase","190244525","24/06/16","Fleet Services","Fleet Management","R4000"
"Wolverhampton City Council","http://opendatacommunities.org/id/metropolitan-district-council/wolverhampton","Alexander Dennis Limited","817713","38.80","Equipment - Purchase","190244527","24/06/16","Fleet Services","Fleet Management","R4000"
"Wolverhampton City Council","http://opendatacommunities.org/id/metropolitan-district-council/wolverhampton","Alexander Dennis Limited","817713","46.97","Equipment - Purchase","190244527","24/06/16","Fleet Services","Fleet Management","R4000"
"Wolverhampton City Council","http://opendatacommunities.org/id/metropolitan-district-council/wolverhampton","Alexander Dennis Limited","817713","382.60","Equipment - Purchase","190244527","24/06/16","Fleet Services","Fleet Management","R4000"
"Wolverhampton City Council","http://opendatacommunities.org/id/metropolitan-district-council/wolverhampton","Alexander Dennis Limited","817713","14.60","Equipment - Purchase","190244527","24/06/16","Fleet Services","Fleet Management","R4000"
"Wolverhampton City Council","http://opendatacommunities.org/id/metropolitan-district-council/wolverhampton","Alexander Dennis Limited","817713","58.14","Equipment - Purchase","190244527","24/06/16","Fleet Services","Fleet Management","R4000"
"Wolverhampton City Council","http://opendatacommunities.org/id/metropolitan-district-council/wolverhampton","Alexander Dennis Limited","817712","7.73","Equipment - Purchase","190244526","24/06/16","Fleet Services","Fleet Management","R4000"
"Wolverhampton City Council","http://opendatacommunities.org/id/metropolitan-district-council/wolverhampton","Alexander Dennis Limited","817712","7.06","Equipment - Purchase","190244526","24/06/16","Fleet Services","Fleet Management","R4000"
"Wolverhampton City Council","http://opendatacommunities.org/id/metropolitan-district-council/wolverhampton","Alexander Dennis Limited","817714","36.92","Equipment - Purchase","190244528","24/06/16","Fleet Services","Fleet Management","R4000"
"Wolverhampton City Council","http://opendatacommunities.org/id/metropolitan-district-council/wolverhampton","Alexander Dennis Limited","817714","27.24","Equipment - Purchase","190244528","24/06/16","Fleet Services","Fleet Management","R4000"
"Wolverhampton City Council","http://opendatacommunities.org/id/metropolitan-district-council/wolverhampton","Alexander Dennis Limited","817714","74.03","Equipment - Purchase","190244528","24/06/16","Fleet Services","Fleet Management","R4000"
"Wolverhampton City Council","http://opendatacommunities.org/id/metropolitan-district-council/wolverhampton","Alexander Dennis Limited","817714","6.30","Equipment - Purchase","190244528","24/06/16","Fleet Services","Fleet Management","R4000"
"Wolverhampton City Council","http://opendatacommunities.org/id/metropolitan-district-council/wolverhampton","Alexander Dennis Limited","820190","206.91","Equipment - Purchase","190244529","24/06/16","Fleet Services","Fleet Management","R4000"
"Wolverhampton City Council","http://opendatacommunities.org/id/metropolitan-district-council/wolverhampton","Alexander Dennis Limited","945326","12.42","Equipment - Purchase","190244540","24/06/16","Fleet Services","Fleet Management","R4000"
"Wolverhampton City Council","http://opendatacommunities.org/id/metropolitan-district-council/wolverhampton","Alexander Dennis Limited","945326","-62.10","Equipment - Purchase","190244540","24/06/16","Fleet Services","Fleet Management","R4000"
"Wolverhampton City Council","http://opendatacommunities.org/id/metropolitan-district-council/wolverhampton","Alexander Dennis Limited","824918","32.83","Equipment - Purchase","190241856","15/06/16","Fleet Services","Fleet Management","R4000"
"Wolverhampton City Council","http://opendatacommunities.org/id/metropolitan-district-council/wolverhampton","Alexander Dennis Limited","822519","44.65","Equipment - Purchase","190241855","15/06/16","Fleet Services","Fleet Management","R4000"
"Wolverhampton City Council","http://opendatacommunities.org/id/metropolitan-district-council/wolverhampton","Alexander Dennis Limited","824919","141.01","Equipment - Purchase","190241857","15/06/16","Fleet Services","Fleet Management","R4000"
"Wolverhampton City Council","http://opendatacommunities.org/id/metropolitan-district-council/wolverhampton","Alice Whyley Creative Wonderland","22","1,750.00","Services - Consultants","130123328","24/06/16","School Planning & Resources","Technical Support","R4404"
"Wolverhampton City Council","http://opendatacommunities.org/id/metropolitan-district-council/wolverhampton","Alice Whyley Creative Wonderland","21","1,750.00","Services - Consultants","130118915","01/06/16","School Planning & Resources","Technical Support","R4404"
"Wolverhampton City Council","http://opendatacommunities.org/id/metropolitan-district-council/wolverhampton","Alice Whyley Creative Wonderland","21","-1,750.00","Services - Consultants","130118915","01/06/16","School Planning & Resources","Technical Support","R4404"
"Wolverhampton City Council","http://opendatacommunities.org/id/metropolitan-district-council/wolverhampton","Alice Whyley Creative Wonderland","21","1,750.00","Services - Consultants","130118915","01/06/16","School Planning & Resources","Technical Support","R4404"
"Wolverhampton City Council","http://opendatacommunities.org/id/metropolitan-district-council/wolverhampton","All Saints Action Network Limited","102798","99.00","Room Hire","130123513","15/06/16","Health Protection & NHS Facing","Health Protection & NHS Facing","R2201"
"Wolverhampton City Council","http://opendatacommunities.org/id/metropolitan-district-council/wolverhampton","All Saints Action Network Limited","102797","480.00","Room Hire","130123512","08/06/16","Intelligence & Evidence","Information and Intelligence","R2201"
"Wolverhampton City Council","http://opendatacommunities.org/id/metropolitan-district-council/wolverhampton","All Saints Action Network Limited","NEF Sum 16 Inst 1","17,318.07","TPP - Private Nursery Education Funding","190238616","03/06/16","Childrens Centres & Early Years","Early Years Non Maintained Schools","R5035"
"Wolverhampton City Council","http://opendatacommunities.org/id/metropolitan-district-council/wolverhampton","All Saints Action Network Limited","T42 Sum 16 Inst 1","15,165.00","Grant Payments","190238621","03/06/16","Childrens Centres & Early Years","2 Year Olds Pilot - Early Learning & Childcare","R4700"
"Wolverhampton City Council","http://opendatacommunities.org/id/metropolitan-district-council/wolverhampton","All Saints Pharmacy","TRAllsaintspharmBP1516","1,000.00","TPP - Public Health Contracts","190244280","24/06/16","Contracts","Alcohol and Drug","R5060"
"Wolverhampton City Council","http://opendatacommunities.org/id/metropolitan-district-council/wolverhampton","Allsorts Office Supplies Limited","705913","1,550.00","Construction and Conversion","130122372","03/06/16","","Primary Expansion Programme","C1100"
"Wolverhampton City Council","http://opendatacommunities.org/id/metropolitan-district-council/wolverhampton","Allsorts Office Supplies Limited","705829","194.00","Construction and Conversion","130120402","22/06/16","","Primary Expansion Programme","C1100"
"Wolverhampton City Council","http://opendatacommunities.org/id/metropolitan-district-council/wolverhampton","Allstar Business Solutions Limited","E2006680527","6.00","Petrol","190245667","29/06/16","Fleet Services","Fleet Management","R3000"
"Wolverhampton City Council","http://opendatacommunities.org/id/metropolitan-district-council/wolverhampton","Allstar Business Solutions Limited","E2006680527","1,435.73","Petrol","190245667","29/06/16","Fleet Services","Fleet Management","R3000"
"Wolverhampton City Council","http://opendatacommunities.org/id/metropolitan-district-council/wolverhampton","Allstar Business Solutions Limited","E2006767803","1,310.09","Petrol","190245668","29/06/16","Fleet Services","Fleet Management","R3000"
"Wolverhampton City Council","http://opendatacommunities.org/id/metropolitan-district-council/wolverhampton","Allstar Business Solutions Limited","E2006767803","-6.00","Petrol","190245668","29/06/16","Fleet Services","Fleet Management","R3000"
"Wolverhampton City Council","http://opendatacommunities.org/id/metropolitan-district-council/wolverhampton","Allstar Business Solutions Limited","E2006775473","79.28","Petrol","190245669","29/06/16","Fleet Services","Fleet Management","R3000"
"Wolverhampton City Council","http://opendatacommunities.org/id/metropolitan-district-council/wolverhampton","Allstar Business Solutions Limited","E2006775492","16.67","Petrol","190245670","29/06/16","Fleet Services","Fleet Management","R3000"
"Wolverhampton City Council","http://opendatacommunities.org/id/metropolitan-district-council/wolverhampton","Alphabiolabs","5876","103.13","Services - Professional Fees","130123069","03/06/16","Children in Need & Child Protection","Head of Service - CINCP","R4400"
"Wolverhampton City Council","http://opendatacommunities.org/id/metropolitan-district-council/wolverhampton","Als-Holdings Limited T/A Ac Education","12071","2,358.00","Training Expenses","130121128","15/06/16","Looked After Children","Fostering Team & Allowances","R1650"
"Wolverhampton City Council","http://opendatacommunities.org/id/metropolitan-district-council/wolverhampton","Angel Springs Limited","2995652","25.92","Catering","130125781","22/06/16","School Planning & Resources","Music Support Team","R4100"
"Wolverhampton City Council","http://opendatacommunities.org/id/metropolitan-district-council/wolverhampton","Angel Springs Limited","3001328","10.20","Provisions (Not for resale)","130123023","03/06/16","Early Intervention and Prevention","EIP Locality 7","R4101"
"Wolverhampton City Council","http://opendatacommunities.org/id/metropolitan-district-council/wolverhampton","Angel Springs Limited","3031501","12.96","Provisions (Not for resale)","130122752","03/06/16","Environmental Maintenance","Arbor Scheme","R4101"
"Wolverhampton City Council","http://opendatacommunities.org/id/metropolitan-district-council/wolverhampton","Angel Springs Limited","3105531","6.48","Provisions (Not for resale)","130124160","24/06/16","Housing Revenue Account - Communities","Carelink","R4101"
"Wolverhampton City Council","http://opendatacommunities.org/id/metropolitan-district-council/wolverhampton","Angel Springs Limited","3105534","50.64","Provisions (Not for resale)","130124163","24/06/16","Fleet Services","Passenger Transport - General","R4101"
"Wolverhampton City Council","http://opendatacommunities.org/id/metropolitan-district-council/wolverhampton","Angel Springs Limited","3105564","25.92","Provisions (Not for resale)","130124167","24/06/16","Highways Maintenance","Patching","R4101"
"Wolverhampton City Council","http://opendatacommunities.org/id/metropolitan-district-council/wolverhampton","Angel Springs Limited","3037864","17.49","Provisions (Not for resale)","130125994","24/06/16","Early Intervention and Prevention","EIP Locality 2","R4101"
"Wolverhampton City Council","http://opendatacommunities.org/id/metropolitan-district-council/wolverhampton","Angel Springs Limited","3105533","100.38","Provisions (Not for resale)","130124162","24/06/16","Democratic Services","Members Expenses","R4101"
"Wolverhampton City Council","http://opendatacommunities.org/id/metropolitan-district-council/wolverhampton","Angel Springs Limited","3105530","23.26","Provisions (Not for resale)","130124159","24/06/16","Mental Health Assesment & Care Management","46a, Second Avenue, Low Hill","R4101"
"Wolverhampton City Council","http://opendatacommunities.org/id/metropolitan-district-council/wolverhampton","Angel Springs Limited","3105529","42.70","Provisions (Not for resale)","130124158","24/06/16","Parking Services","Parking Enforcement","R4101"
"Wolverhampton City Council","http://opendatacommunities.org/id/metropolitan-district-council/wolverhampton","Angel Springs Limited","3105528","16.20","Provisions (Not for resale)","130124157","24/06/16","Parking Services","Car Parks Operational Staff","R4101"
"Wolverhampton City Council","http://opendatacommunities.org/id/metropolitan-district-council/wolverhampton","Angel Springs Limited","3105570","31.28","Provisions (Not for resale)","130124645","24/06/16","Childrens Centres & Early Years","Children�s Village Children Centre","R4101"
"Wolverhampton City Council","http://opendatacommunities.org/id/metropolitan-district-council/wolverhampton","Angel Springs Limited","3105561","206.25","Provisions (Not for resale)","130124166","24/06/16","Facilities Management","Civic Centre","R4101"
"Wolverhampton City Council","http://opendatacommunities.org/id/metropolitan-district-council/wolverhampton","Angel Springs Limited","3068714","61.52","Provisions (Not for resale)","130125271","22/06/16","Fleet Services","Passenger Transport - General","R4101"
"Wolverhampton City Council","http://opendatacommunities.org/id/metropolitan-district-council/wolverhampton","Angel Springs Limited","3105537","13.75","Provisions (Not for resale)","130124165","24/06/16","Skills","Connexions Contract","R4101"
"Wolverhampton City Council","http://opendatacommunities.org/id/metropolitan-district-council/wolverhampton","Angel Springs Limited","3105567","15.64","Provisions (Not for resale)","130124168","24/06/16","Facilities Management","Culwell Street Depot","R4101"
"Wolverhampton City Council","http://opendatacommunities.org/id/metropolitan-district-council/wolverhampton","Angel Springs Limited","3068716","81.09","Provisions (Not for resale)","130126668","29/06/16","School Planning & Resources","Education Data Services","R4101"
"Wolverhampton City Council","http://opendatacommunities.org/id/metropolitan-district-council/wolverhampton","Angel Springs Limited","3105532","10.30","Provisions (Not for resale)","130124161","24/06/16","Customer Services","City Direct 24hr Control Centre","R4101"
"Wolverhampton City Council","http://opendatacommunities.org/id/metropolitan-district-council/wolverhampton","Angel Springs Limited","3105536","12.96","Provisions (Not for resale)","130126669","29/06/16","School Planning & Resources","Education Data Services","R4101"
"Wolverhampton City Council","http://opendatacommunities.org/id/metropolitan-district-council/wolverhampton","Angel Springs Limited","3068751","31.28","Provisions (Not for resale)","130123344","08/06/16","Childrens Centres & Early Years","Children�s Village Children Centre","R4101"
"Wolverhampton City Council","http://opendatacommunities.org/id/metropolitan-district-council/wolverhampton","Angelbell Limited T/A Hulleys Frozen","695631","103.76","Provisions (Resale)","130124198","15/06/16","Visitor Economy","Bantock - Tea Rooms","R4102"
"Wolverhampton City Council","http://opendatacommunities.org/id/metropolitan-district-council/wolverhampton","Angelbell Limited T/A Hulleys Frozen","738102","230.61","Provisions (Resale)","130124698","22/06/16","Visitor Economy","Bantock - Tea Rooms","R4102"
"Wolverhampton City Council","http://opendatacommunities.org/id/metropolitan-district-council/wolverhampton","Angelbell Limited T/A Hulleys Frozen","698954","195.09","Provisions (Resale)","130124199","15/06/16","Visitor Economy","Bantock - Tea Rooms","R4102"
"Wolverhampton City Council","http://opendatacommunities.org/id/metropolitan-district-council/wolverhampton","Angelbell Limited T/A Hulleys Frozen","681677","218.39","Provisions (Resale)","130124195","15/06/16","Visitor Economy","Bantock - Tea Rooms","R4102"
"Wolverhampton City Council","http://opendatacommunities.org/id/metropolitan-district-council/wolverhampton","Angelbell Limited T/A Hulleys Frozen","700711","166.00","Provisions (Resale)","130124200","15/06/16","Visitor Economy","Bantock - Tea Rooms","R4102"
"Wolverhampton City Council","http://opendatacommunities.org/id/metropolitan-district-council/wolverhampton","Angelbell Limited T/A Hulleys Frozen","724050","124.93","Provisions (Resale)","130124205","15/06/16","Visitor Economy","Bantock - Tea Rooms","R4102"
"Wolverhampton City Council","http://opendatacommunities.org/id/metropolitan-district-council/wolverhampton","Angelbell Limited T/A Hulleys Frozen","743974","162.87","Provisions (Resale)","130124209","15/06/16","Visitor Economy","Bantock - Tea Rooms","R4102"
"Wolverhampton City Council","http://opendatacommunities.org/id/metropolitan-district-council/wolverhampton","Angelbell Limited T/A Hulleys Frozen","739644","167.10","Provisions (Resale)","130124208","15/06/16","Visitor Economy","Bantock - Tea Rooms","R4102"
"Wolverhampton City Council","http://opendatacommunities.org/id/metropolitan-district-council/wolverhampton","Angelbell Limited T/A Hulleys Frozen","708940","129.29","Provisions (Resale)","130124202","15/06/16","Visitor Economy","Bantock - Tea Rooms","R4102"
"Wolverhampton City Council","http://opendatacommunities.org/id/metropolitan-district-council/wolverhampton","Angelbell Limited T/A Hulleys Frozen","746814","126.70","Provisions (Resale)","130124210","15/06/16","Visitor Economy","Bantock - Tea Rooms","R4102"
"Wolverhampton City Council","http://opendatacommunities.org/id/metropolitan-district-council/wolverhampton","Angelbell Limited T/A Hulleys Frozen","714333","104.10","Provisions (Resale)","130124203","15/06/16","Visitor Economy","Bantock - Tea Rooms","R4102"
"Wolverhampton City Council","http://opendatacommunities.org/id/metropolitan-district-council/wolverhampton","Angelbell Limited T/A Hulleys Frozen","703483","139.22","Provisions (Resale)","130124201","15/06/16","Visitor Economy","Bantock - Tea Rooms","R4102"
"Wolverhampton City Council","http://opendatacommunities.org/id/metropolitan-district-council/wolverhampton","Angelbell Limited T/A Hulleys Frozen","757373","188.09","Provisions (Resale)","130124214","15/06/16","Visitor Economy","Bantock - Tea Rooms","R4102"
"Wolverhampton City Council","http://opendatacommunities.org/id/metropolitan-district-council/wolverhampton","Angelbell Limited T/A Hulleys Frozen","730697","123.10","Provisions (Resale)","130124206","15/06/16","Visitor Economy","Bantock - Tea Rooms","R4102"
"Wolverhampton City Council","http://opendatacommunities.org/id/metropolitan-district-council/wolverhampton","Angelbell Limited T/A Hulleys Frozen","755591","146.46","Provisions (Resale)","130124213","15/06/16","Visitor Economy","Bantock - Tea Rooms","R4102"
"Wolverhampton City Council","http://opendatacommunities.org/id/metropolitan-district-council/wolverhampton","Angelbell Limited T/A Hulleys Frozen","685127","123.36","Provisions (Resale)","130124196","15/06/16","Visitor Economy","Bantock - Tea Rooms","R4102"
"Wolverhampton City Council","http://opendatacommunities.org/id/metropolitan-district-council/wolverhampton","Angelbell Limited T/A Hulleys Frozen","693083","148.19","Provisions (Resale)","130124197","15/06/16","Visitor Economy","Bantock - Tea Rooms","R4102"
"Wolverhampton City Council","http://opendatacommunities.org/id/metropolitan-district-council/wolverhampton","Angelbell Limited T/A Hulleys Frozen","752101","322.28","Provisions (Resale)","130124211","15/06/16","Visitor Economy","Bantock - Tea Rooms","R4102"
"Wolverhampton City Council","http://opendatacommunities.org/id/metropolitan-district-council/wolverhampton","Angelbell Limited T/A Hulleys Frozen","723324","197.44","Provisions (Resale)","130124204","15/06/16","Visitor Economy","Bantock - Tea Rooms","R4102"
"Wolverhampton City Council","http://opendatacommunities.org/id/metropolitan-district-council/wolverhampton","Anglia Dna Services Limited","41245","474.00","Services - Professional Fees","130125998","24/06/16","Children in Need & Child Protection","Head of Service - CINCP","R4400"
"Wolverhampton City Council","http://opendatacommunities.org/id/metropolitan-district-council/wolverhampton","Anglia Dna Services Limited","41276","118.50","Services - Professional Fees","130125999","24/06/16","Children in Need & Child Protection","Head of Service - CINCP","R4400"
"Wolverhampton City Council","http://opendatacommunities.org/id/metropolitan-district-council/wolverhampton","Anglia Dna Services Limited","40849","118.50","Services - Professional Fees","130125997","24/06/16","Children in Need & Child Protection","Head of Service - CINCP","R4400"
"Wolverhampton City Council","http://opendatacommunities.org/id/metropolitan-district-council/wolverhampton","Apcoa Parking (UK) Limited","236053","50,350.63","TPP - Traffic Management","130123745","24/06/16","Parking Services","Parking Enforcement","R5050"
"Wolverhampton City Council","http://opendatacommunities.org/id/metropolitan-district-council/wolverhampton","Apcoa Parking (UK) Limited","234237","50,551.31","TPP - Traffic Management","130119274","01/06/16","Parking Services","Parking Enforcement","R5050"
"Wolverhampton City Council","http://opendatacommunities.org/id/metropolitan-district-council/wolverhampton","Apetito Limited","9001715482","1,237.37","Provisions (Resale)","130121783","10/06/16","Catering","Meals on Wheels","R4102"
"Wolverhampton City Council","http://opendatacommunities.org/id/metropolitan-district-council/wolverhampton","Apetito Limited","9001717805","10.80","Provisions (Resale)","130122162","17/06/16","Catering","Meals on Wheels","R4102"
"Wolverhampton City Council","http://opendatacommunities.org/id/metropolitan-district-council/wolverhampton","Apetito Limited","9001722426","1,094.30","Provisions (Resale)","130123110","24/06/16","Catering","Meals on Wheels","R4102"
"Wolverhampton City Council","http://opendatacommunities.org/id/metropolitan-district-council/wolverhampton","Apetito Limited","9001725614","1,429.50","Provisions (Resale)","130123829","24/06/16","Catering","Meals on Wheels","R4102"
"Wolverhampton City Council","http://opendatacommunities.org/id/metropolitan-district-council/wolverhampton","Apetito Limited","9001707344","1,075.91","Provisions (Resale)","130120094","03/06/16","Catering","Meals on Wheels","R4102"
"Wolverhampton City Council","http://opendatacommunities.org/id/metropolitan-district-council/wolverhampton","Apetito Limited","9001710691","1,254.22","Provisions (Resale)","130120762","03/06/16","Catering","Meals on Wheels","R4102"
"Wolverhampton City Council","http://opendatacommunities.org/id/metropolitan-district-council/wolverhampton","Apetito Limited","9001705416","1,679.36","Provisions (Resale)","130119594","01/06/16","Catering","Meals on Wheels","R4102"
"Wolverhampton City Council","http://opendatacommunities.org/id/metropolitan-district-council/wolverhampton","Apetito Limited","9001703107","1,330.46","Provisions (Resale)","130119366","01/06/16","Catering","Meals on Wheels","R4102"
"Wolverhampton City Council","http://opendatacommunities.org/id/metropolitan-district-council/wolverhampton","Apetito Limited","9001713260","1,070.45","Provisions (Resale)","130121404","10/06/16","Catering","Meals on Wheels","R4102"
"Wolverhampton City Council","http://opendatacommunities.org/id/metropolitan-district-council/wolverhampton","Apetito Limited","9001717804","958.86","Provisions (Resale)","130122161","17/06/16","Catering","Meals on Wheels","R4102"
"Wolverhampton City Council","http://opendatacommunities.org/id/metropolitan-district-council/wolverhampton","Apetito Limited","9001720435","1,400.01","Provisions (Resale)","130122827","17/06/16","Catering","Meals on Wheels","R4102"
"Wolverhampton City Council","http://opendatacommunities.org/id/metropolitan-district-council/wolverhampton","AQA Education","21069187","21.20","Exam Expenses (Non-Employee)","130122115","03/06/16","Adult Education","Foundation Studies Delivery Area","R4630"
"Wolverhampton City Council","http://opendatacommunities.org/id/metropolitan-district-council/wolverhampton","Aquajoy Bathlifts Limited","0000937537","1,964.50","Equipment - R & M","130125163","24/06/16","Independent Living Service","Independent Living Service","R4003"
"Wolverhampton City Council","http://opendatacommunities.org/id/metropolitan-district-council/wolverhampton","Archive Servs Data&Records Mngt Limited","0006126","28.50","Storage","130120334","01/06/16","Childrens Centres & Early Years","Children�s Village Children Centre","R4910"
"Wolverhampton City Council","http://opendatacommunities.org/id/metropolitan-district-council/wolverhampton","Archive Servs Data&Records Mngt Limited","0006200","28.50","Storage","130123250","08/06/16","Childrens Centres & Early Years","Children�s Village Children Centre","R4910"
"Wolverhampton City Council","http://opendatacommunities.org/id/metropolitan-district-council/wolverhampton","Arjohuntleigh UK","55797","252.00","Equipment - Purchase","130120242","01/06/16","Learning Disability Provider","Learning Disabilities Management","R4000"
"Wolverhampton City Council","http://opendatacommunities.org/id/metropolitan-district-council/wolverhampton","Arjohuntleigh UK","57252","4,795.10","Equipment - Purchase","130121539","01/06/16","Older People Provider Services","Older People Provider Management","R4000"
"Wolverhampton City Council","http://opendatacommunities.org/id/metropolitan-district-council/wolverhampton","Arjohuntleigh UK","55796","252.00","Equipment - Purchase","130119587","01/06/16","Learning Disability Provider","Learning Disabilities Management","R4000"
"Wolverhampton City Council","http://opendatacommunities.org/id/metropolitan-district-council/wolverhampton","Arnold Clark Finance Limited","HI2011039","147.00","Hire of Vehicles","190242098","17/06/16","Fleet Services","Fleet Management","R3200"
"Wolverhampton City Council","http://opendatacommunities.org/id/metropolitan-district-council/wolverhampton","Arnold Clark Finance Limited","HI2011038","147.00","Hire of Vehicles","190242097","17/06/16","Fleet Services","Fleet Management","R3200"
"Wolverhampton City Council","http://opendatacommunities.org/id/metropolitan-district-council/wolverhampton","Arnold Clark Finance Limited","HI2011037","147.00","Hire of Vehicles","190242096","17/06/16","Fleet Services","Fleet Management","R3200"
"Wolverhampton City Council","http://opendatacommunities.org/id/metropolitan-district-council/wolverhampton","Arnold Clark Finance Limited","HI2011035","147.00","Hire of Vehicles","190242094","17/06/16","Fleet Services","Fleet Management","R3200"
"Wolverhampton City Council","http://opendatacommunities.org/id/metropolitan-district-council/wolverhampton","Arnold Clark Finance Limited","HI2011036","147.00","Hire of Vehicles","190242095","17/06/16","Fleet Services","Fleet Management","R3200"
"Wolverhampton City Council","http://opendatacommunities.org/id/metropolitan-district-council/wolverhampton","Arnold Clark Finance Limited","HI2009252","147.00","Hire of Vehicles","190242093","17/06/16","Fleet Services","Fleet Management","R3200"
"Wolverhampton City Council","http://opendatacommunities.org/id/metropolitan-district-council/wolverhampton","Arnold Clark Finance Limited","HI2009250","147.00","Hire of Vehicles","190242092","17/06/16","Fleet Services","Fleet Management","R3200"
"Wolverhampton City Council","http://opendatacommunities.org/id/metropolitan-district-council/wolverhampton","Arnold Clark Finance Limited","HI2009249","147.00","Hire of Vehicles","190242091","17/06/16","Fleet Services","Fleet Management","R3200"
"Wolverhampton City Council","http://opendatacommunities.org/id/metropolitan-district-council/wolverhampton","Arnold Clark Finance Limited","HI2009248","147.00","Hire of Vehicles","190242090","17/06/16","Fleet Services","Fleet Management","R3200"
"Wolverhampton City Council","http://opendatacommunities.org/id/metropolitan-district-council/wolverhampton","Arthur Brett (Catering) Limited","ID857032","49.91","Provisions (Resale)","130121237","08/06/16","Older People Provider Services","Bradley Lodge Resource Centre","R4102"
"Wolverhampton City Council","http://opendatacommunities.org/id/metropolitan-district-council/wolverhampton","Arthur Brett (Catering) Limited","ID856844","40.17","Provisions (Resale)","130121040","08/06/16","Older People Provider Services","Bradley Lodge Resource Centre","R4102"
"Wolverhampton City Council","http://opendatacommunities.org/id/metropolitan-district-council/wolverhampton","Arthur Brett (Catering) Limited","ID860181","53.82","Provisions (Resale)","130123428","08/06/16","Leisure Services","WV Active Catering","R4102"
"Wolverhampton City Council","http://opendatacommunities.org/id/metropolitan-district-council/wolverhampton","Arthur Brett (Catering) Limited","ID860545","8.64","Provisions (Resale)","130123429","08/06/16","Leisure Services","WV Active Catering","R4102"
"Wolverhampton City Council","http://opendatacommunities.org/id/metropolitan-district-council/wolverhampton","Arthur Brett (Catering) Limited","ID862742","11.91","Provisions (Resale)","130124536","15/06/16","Older People Provider Services","Ekta Day Centre","R4102"
"Wolverhampton City Council","http://opendatacommunities.org/id/metropolitan-district-council/wolverhampton","Arthur Brett (Catering) Limited","WI902363","421.52","Provisions (Resale)","130120844","15/06/16","Contracts","Children Diet and Physical Activity","R4102"
"Wolverhampton City Council","http://opendatacommunities.org/id/metropolitan-district-council/wolverhampton","Arthur Brett (Catering) Limited","ID861704","172.39","Provisions (Resale)","130124282","15/06/16","Visitor Economy","Bantock - Tea Rooms","R4102"
"Wolverhampton City Council","http://opendatacommunities.org/id/metropolitan-district-council/wolverhampton","Arthur Brett (Catering) Limited","ID861393","8.55","Provisions (Resale)","130124281","15/06/16","Visitor Economy","Bantock - Tea Rooms","R4102"
"Wolverhampton City Council","http://opendatacommunities.org/id/metropolitan-district-council/wolverhampton","Arthur Brett (Catering) Limited","3004161","30,567.05","Provisions (Resale)","130122535","15/06/16","Catering","Education Catering - General Overheads","R4102"
"Wolverhampton City Council","http://opendatacommunities.org/id/metropolitan-district-council/wolverhampton","Arthur Brett (Catering) Limited","3004162","1,692.65","Provisions (Resale)","130122536","15/06/16","Catering","Civic Centre Catering","R4102"
"Wolverhampton City Council","http://opendatacommunities.org/id/metropolitan-district-council/wolverhampton","Arthur Brett (Catering) Limited","3004164","249.23","Provisions (Resale)","130122538","15/06/16","Catering","Bert Williams Leisure Centre Caf�","R4102"
"Wolverhampton City Council","http://opendatacommunities.org/id/metropolitan-district-council/wolverhampton","Arthur Brett (Catering) Limited","3004163","181.50","Provisions (Resale)","130122537","15/06/16","Catering","Meals on Wheels","R4102"
"Wolverhampton City Council","http://opendatacommunities.org/id/metropolitan-district-council/wolverhampton","Arthur Brett (Catering) Limited","ID862201","22.28","Provisions (Resale)","130124532","15/06/16","Older People Provider Services","Blakenhall Resource Centre","R4102"
"Wolverhampton City Council","http://opendatacommunities.org/id/metropolitan-district-council/wolverhampton","Arthur Brett (Catering) Limited","ID862354","46.36","Provisions (Resale)","130124533","15/06/16","Visitor Economy","Bantock - Tea Rooms","R4102"
"Wolverhampton City Council","http://opendatacommunities.org/id/metropolitan-district-council/wolverhampton","Arthur Brett (Catering) Limited","ID862445","71.65","Provisions (Resale)","130124534","15/06/16","Visitor Economy","Art Gallery Tea Room","R4102"
"Wolverhampton City Council","http://opendatacommunities.org/id/metropolitan-district-council/wolverhampton","Arthur Brett (Catering) Limited","ID808275","56.35","Provisions (Resale)","130121839","17/06/16","Older People Provider Services","Merry Hill House","R4102"
"Wolverhampton City Council","http://opendatacommunities.org/id/metropolitan-district-council/wolverhampton","Arthur Brett (Catering) Limited","ID820551","33.27","Provisions (Resale)","130115417","17/06/16","Older People Provider Services","Woden Resource Centre","R4102"
"Wolverhampton City Council","http://opendatacommunities.org/id/metropolitan-district-council/wolverhampton","Arthur Brett (Catering) Limited","WI902375","421.52","Provisions (Resale)","130122206","17/06/16","Contracts","Children Diet and Physical Activity","R4102"
"Wolverhampton City Council","http://opendatacommunities.org/id/metropolitan-district-council/wolverhampton","Arthur Brett (Catering) Limited","WI902386","255.92","Provisions (Resale)","130122885","17/06/16","Contracts","Children Diet and Physical Activity","R4102"
"Wolverhampton City Council","http://opendatacommunities.org/id/metropolitan-district-council/wolverhampton","Arthur Brett (Catering) Limited","ID862638","140.79","Provisions (Resale)","130124535","17/06/16","Visitor Economy","Bantock - Tea Rooms","R4102"
"Wolverhampton City Council","http://opendatacommunities.org/id/metropolitan-district-council/wolverhampton","Arthur Brett (Catering) Limited","ID859045","46.10","Provisions (Resale)","130122175","01/06/16","Leisure Services","WV Active Catering","R4102"
"Wolverhampton City Council","http://opendatacommunities.org/id/metropolitan-district-council/wolverhampton","Arthur Brett (Catering) Limited","ID855076","17.26","Provisions (Resale)","130121804","01/06/16","Learning Disability Provider","Duke Street Bungalows","R4102"
"Wolverhampton City Council","http://opendatacommunities.org/id/metropolitan-district-council/wolverhampton","Arthur Brett (Catering) Limited","ID838185","17.64","Provisions (Resale)","130121844","01/06/16","Learning Disability Provider","Duke Street Bungalows","R4102"
"Wolverhampton City Council","http://opendatacommunities.org/id/metropolitan-district-council/wolverhampton","Arthur Brett (Catering) Limited","ID855067","9.80","Provisions (Resale)","130121803","01/06/16","Learning Disability Provider","Duke Street Bungalows","R4102"
"Wolverhampton City Council","http://opendatacommunities.org/id/metropolitan-district-council/wolverhampton","Arthur Brett (Catering) Limited","ID858402","83.90","Provisions (Resale)","130121806","01/06/16","Visitor Economy","Art Gallery Tea Room","R4102"
"Wolverhampton City Council","http://opendatacommunities.org/id/metropolitan-district-council/wolverhampton","Arthur Brett (Catering) Limited","ID857034","51.80","Provisions (Resale)","130122173","01/06/16","Older People Provider Services","Bradley Lodge Resource Centre","R4102"
"Wolverhampton City Council","http://opendatacommunities.org/id/metropolitan-district-council/wolverhampton","Arthur Brett (Catering) Limited","ID857033","58.30","Provisions (Resale)","130121805","01/06/16","Older People Provider Services","Bradley Lodge Resource Centre","R4102"
"Wolverhampton City Council","http://opendatacommunities.org/id/metropolitan-district-council/wolverhampton","Arthur Brett (Catering) Limited","ID840642","3.78","Provisions (Resale)","130121845","01/06/16","Learning Disability Provider","Duke Street Bungalows","R4102"
"Wolverhampton City Council","http://opendatacommunities.org/id/metropolitan-district-council/wolverhampton","Arthur Brett (Catering) Limited","ID863847","1.58","Provisions (Resale)","130125129","24/06/16","Visitor Economy","Bantock - Tea Rooms","R4102"
"Wolverhampton City Council","http://opendatacommunities.org/id/metropolitan-district-council/wolverhampton","Arthur Brett (Catering) Limited","ID864258","134.23","Provisions (Resale)","130125323","24/06/16","Visitor Economy","Bantock - Tea Rooms","R4102"
"Wolverhampton City Council","http://opendatacommunities.org/id/metropolitan-district-council/wolverhampton","Arthur Brett (Catering) Limited","ID864280","124.17","Provisions (Resale)","130125324","24/06/16","Visitor Economy","Art Gallery Tea Room","R4102"
"Wolverhampton City Council","http://opendatacommunities.org/id/metropolitan-district-council/wolverhampton","Arthur Brett (Catering) Limited","ID865303","85.50","Provisions (Resale)","130125679","24/06/16","Visitor Economy","Art Gallery Tea Room","R4102"
"Wolverhampton City Council","http://opendatacommunities.org/id/metropolitan-district-council/wolverhampton","Arthur Brett (Catering) Limited","ID865286","142.43","Provisions (Resale)","130125678","24/06/16","Visitor Economy","Bantock - Tea Rooms","R4102"
"Wolverhampton City Council","http://opendatacommunities.org/id/metropolitan-district-council/wolverhampton","Arthur Brett (Catering) Limited","ID865767","23.58","Provisions (Resale)","130125866","24/06/16","Visitor Economy","Art Gallery Tea Room","R4102"
"Wolverhampton City Council","http://opendatacommunities.org/id/metropolitan-district-council/wolverhampton","Arthur Brett (Catering) Limited","ID855085 - credit correction","15.39","Provisions (Resale)","130126270","24/06/16","Learning Disability Provider","Duke Street Bungalows","R4102"
"Wolverhampton City Council","http://opendatacommunities.org/id/metropolitan-district-council/wolverhampton","Arthur Brett (Catering) Limited","ID855085 - Invoice","15.39","Provisions (Resale)","130126271","24/06/16","Learning Disability Provider","Duke Street Bungalows","R4102"
"Wolverhampton City Council","http://opendatacommunities.org/id/metropolitan-district-council/wolverhampton","Arthur Brett (Catering) Limited","ID859476","20.46","Provisions (Resale)","130125676","24/06/16","Learning Disability Provider","Duke Street Bungalows","R4102"
"Wolverhampton City Council","http://opendatacommunities.org/id/metropolitan-district-council/wolverhampton","Arthur Brett (Catering) Limited","ID801154","42.47","Provisions (Resale)","130101786","22/06/16","Older People Provider Services","Bradley Lodge Resource Centre","R4102"
"Wolverhampton City Council","http://opendatacommunities.org/id/metropolitan-district-council/wolverhampton","Arthur Brett (Catering) Limited","ID862974","38.93","Provisions (Resale)","130124734","22/06/16","Leisure Services","WV Active Catering","R4102"
"Wolverhampton City Council","http://opendatacommunities.org/id/metropolitan-district-council/wolverhampton","Arthur Brett (Catering) Limited","ID863525","25.02","Provisions (Resale)","130124873","22/06/16","Visitor Economy","Bantock - Tea Rooms","R4102"
"Wolverhampton City Council","http://opendatacommunities.org/id/metropolitan-district-council/wolverhampton","Arthur Brett (Catering) Limited","ID863499","26.21","Provisions (Resale)","130124872","22/06/16","Visitor Economy","Art Gallery Tea Room","R4102"
"Wolverhampton City Council","http://opendatacommunities.org/id/metropolitan-district-council/wolverhampton","Arthur Brett (Catering) Limited","ID859472","13.26","Provisions (Resale)","130124732","22/06/16","Learning Disability Provider","Duke Street Bungalows","R4102"
"Wolverhampton City Council","http://opendatacommunities.org/id/metropolitan-district-council/wolverhampton","Arthur Brett (Catering) Limited","ID858802","25.61","Provisions (Resale)","130125320","22/06/16","Learning Disability Provider","Duke Street Bungalows","R4102"
"Wolverhampton City Council","http://opendatacommunities.org/id/metropolitan-district-council/wolverhampton","Arthur Brett (Catering) Limited","ID859475","4.88","Provisions (Resale)","130125321","22/06/16","Learning Disability Provider","Duke Street Bungalows","R4102"
"Wolverhampton City Council","http://opendatacommunities.org/id/metropolitan-district-council/wolverhampton","Arthur Brett (Catering) Limited","ID860715","22.49","Provisions (Resale)","130125322","22/06/16","Learning Disability Provider","Duke Street Bungalows","R4102"
"Wolverhampton City Council","http://opendatacommunities.org/id/metropolitan-district-council/wolverhampton","Arthur Brett (Catering) Limited","ID860716","20.06","Provisions (Resale)","130126240","29/06/16","Learning Disability Provider","Duke Street Bungalows","R4102"
"Wolverhampton City Council","http://opendatacommunities.org/id/metropolitan-district-council/wolverhampton","Arthur Brett (Catering) Limited","ID859478","5.79","Provisions (Resale)","130126239","29/06/16","Learning Disability Provider","Duke Street Bungalows","R4102"
"Wolverhampton City Council","http://opendatacommunities.org/id/metropolitan-district-council/wolverhampton","Arthur Brett (Catering) Limited","ID866170","87.52","Provisions (Resale)","130126070","29/06/16","Visitor Economy","Art Gallery Tea Room","R4102"
"Wolverhampton City Council","http://opendatacommunities.org/id/metropolitan-district-council/wolverhampton","Arthur Brett (Catering) Limited","ID858882","58.70","Provisions (Resale)","130124280","29/06/16","Older People Provider Services","Bradley Lodge Resource Centre","R4102"
"Wolverhampton City Council","http://opendatacommunities.org/id/metropolitan-district-council/wolverhampton","Arthur Brett (Catering) Limited","ID862155","1.48","Provisions (Resale)","130124446","29/06/16","Older People Provider Services","Bradley Lodge Resource Centre","R4102"
"Wolverhampton City Council","http://opendatacommunities.org/id/metropolitan-district-council/wolverhampton","Arthur Brett (Catering) Limited","ID861000","62.95","Provisions (Resale)","130124733","29/06/16","Older People Provider Services","Bradley Lodge Resource Centre","R4102"
"Wolverhampton City Council","http://opendatacommunities.org/id/metropolitan-district-council/wolverhampton","Arthur Brett (Catering) Limited","ID861001","59.11","Provisions (Resale)","130125128","29/06/16","Older People Provider Services","Bradley Lodge Resource Centre","R4102"
"Wolverhampton City Council","http://opendatacommunities.org/id/metropolitan-district-council/wolverhampton","Arthur Brett (Catering) Limited","ID864236","32.60","Provisions (Resale)","130125524","29/06/16","Older People Provider Services","Blakenhall Resource Centre","R4102"
"Wolverhampton City Council","http://opendatacommunities.org/id/metropolitan-district-council/wolverhampton","Arthur Brett (Catering) Limited","ID866276","148.69","Provisions (Resale)","130126071","29/06/16","Visitor Economy","Bantock - Tea Rooms","R4102"
"Wolverhampton City Council","http://opendatacommunities.org/id/metropolitan-district-council/wolverhampton","Arthur Brett (Catering) Limited","ID864464","49.19","Provisions (Resale)","130126069","29/06/16","Older People Provider Services","Bradley Lodge Resource Centre","R4102"
"Wolverhampton City Council","http://opendatacommunities.org/id/metropolitan-district-council/wolverhampton","Arthur Brett (Catering) Limited","ID864307","46.04","Provisions (Resale)","130125677","29/06/16","Older People Provider Services","Bradley Lodge Resource Centre","R4102"
"Wolverhampton City Council","http://opendatacommunities.org/id/metropolitan-district-council/wolverhampton","Arthur Brett (Catering) Limited","ID865518","26.37","Provisions (Resale)","130126241","29/06/16","Learning Disability Provider","Duke Street Bungalows","R4102"
"Wolverhampton City Council","http://opendatacommunities.org/id/metropolitan-district-council/wolverhampton","Arthur Brett (Catering) Limited","ID866500","29.42","Provisions (Resale)","130126242","29/06/16","Visitor Economy","Bantock - Tea Rooms","R4102"
"Wolverhampton City Council","http://opendatacommunities.org/id/metropolitan-district-council/wolverhampton","Arthur Brett (Catering) Limited","ID866703","46.13","Provisions (Resale)","130126374","29/06/16","Older People Provider Services","Blakenhall Resource Centre","R4102"
"Wolverhampton City Council","http://opendatacommunities.org/id/metropolitan-district-council/wolverhampton","Arthur Brett (Catering) Limited","ID858841","48.93","Provisions (Resale)","130123854","24/06/16","Older People Provider Services","Bradley Lodge Resource Centre","R4102"
"Wolverhampton City Council","http://opendatacommunities.org/id/metropolitan-district-council/wolverhampton","Arthur Brett (Catering) Limited","ID858547","49.91","Provisions (Resale)","130122613","24/06/16","Older People Provider Services","Bradley Lodge Resource Centre","R4102"
"Wolverhampton City Council","http://opendatacommunities.org/id/metropolitan-district-council/wolverhampton","Arthur Brett (Catering) Limited","ID858548","94.09","Provisions (Resale)","130123122","24/06/16","Older People Provider Services","Bradley Lodge Resource Centre","R4102"
"Wolverhampton City Council","http://opendatacommunities.org/id/metropolitan-district-council/wolverhampton","Arthur Brett (Catering) Limited","ID855081","4.53","Provisions (Resale)","130122421","03/06/16","Learning Disability Provider","Duke Street Bungalows","R4102"
"Wolverhampton City Council","http://opendatacommunities.org/id/metropolitan-district-council/wolverhampton","Arthur Brett (Catering) Limited","ID855085","-15.39","Provisions (Resale)","130122422","03/06/16","Learning Disability Provider","Duke Street Bungalows","R4102"
"Wolverhampton City Council","http://opendatacommunities.org/id/metropolitan-district-council/wolverhampton","Arthur Brett (Catering) Limited","ID855079","-17.32","Provisions (Resale)","130122420","03/06/16","Learning Disability Provider","Duke Street Bungalows","R4102"
"Wolverhampton City Council","http://opendatacommunities.org/id/metropolitan-district-council/wolverhampton","Arthur Brett (Catering) Limited","ID855090","10.57","Provisions (Resale)","130122612","03/06/16","Learning Disability Provider","Duke Street Bungalows","R4102"
"Wolverhampton City Council","http://opendatacommunities.org/id/metropolitan-district-council/wolverhampton","Arthur Brett (Catering) Limited","ID855088","9.80","Provisions (Resale)","130122611","03/06/16","Learning Disability Provider","Duke Street Bungalows","R4102"
"Wolverhampton City Council","http://opendatacommunities.org/id/metropolitan-district-council/wolverhampton","Arthur Brett (Catering) Limited","ID859958","10.80","Provisions (Resale)","130122854","03/06/16","Older People Provider Services","Blakenhall Resource Centre","R4102"
"Wolverhampton City Council","http://opendatacommunities.org/id/metropolitan-district-council/wolverhampton","Arthur Brett (Catering) Limited","WI902321","409.84","Provisions (Resale)","130117061","10/06/16","Contracts","Children Diet and Physical Activity","R4102"
"Wolverhampton City Council","http://opendatacommunities.org/id/metropolitan-district-council/wolverhampton","Arthur Brett (Catering) Limited","WI902342","408.16","Provisions (Resale)","130118993","10/06/16","Contracts","Children Diet and Physical Activity","R4102"
"Wolverhampton City Council","http://opendatacommunities.org/id/metropolitan-district-council/wolverhampton","Arthur Brett (Catering) Limited","ID859038","181.95","Provisions (Resale)","130122174","10/06/16","Visitor Economy","Bantock - Tea Rooms","R4102"
"Wolverhampton City Council","http://opendatacommunities.org/id/metropolitan-district-council/wolverhampton","Arthur Brett (Catering) Limited","ID859566","181.35","Provisions (Resale)","130122615","10/06/16","Visitor Economy","Bantock - Tea Rooms","R4102"
"Wolverhampton City Council","http://opendatacommunities.org/id/metropolitan-district-council/wolverhampton","Arthur Brett (Catering) Limited","ID859288","103.35","Provisions (Resale)","130122423","10/06/16","Visitor Economy","Art Gallery Tea Room","R4102"
"Wolverhampton City Council","http://opendatacommunities.org/id/metropolitan-district-council/wolverhampton","Arthur Brett (Catering) Limited","ID860045","104.41","Provisions (Resale)","130123123","10/06/16","Visitor Economy","Art Gallery Tea Room","R4102"
"Wolverhampton City Council","http://opendatacommunities.org/id/metropolitan-district-council/wolverhampton","Arthur Brett (Catering) Limited","ID859301","30.96","Provisions (Resale)","130122424","10/06/16","Visitor Economy","Bantock - Tea Rooms","R4102"
"Wolverhampton City Council","http://opendatacommunities.org/id/metropolitan-district-council/wolverhampton","Arthur Brett (Catering) Limited","ID855089","15.92","Provisions (Resale)","130123427","10/06/16","Learning Disability Provider","Duke Street Bungalows","R4102"
"Wolverhampton City Council","http://opendatacommunities.org/id/metropolitan-district-council/wolverhampton","Arthur Brett (Catering) Limited","ID861365","104.68","Provisions (Resale)","130124038","10/06/16","Visitor Economy","Art Gallery Tea Room","R4102"
"Wolverhampton City Council","http://opendatacommunities.org/id/metropolitan-district-council/wolverhampton","Arthur Brett (Catering) Limited","ID860901","147.79","Provisions (Resale)","130123645","10/06/16","Visitor Economy","Bantock - Tea Rooms","R4102"
"Wolverhampton City Council","http://opendatacommunities.org/id/metropolitan-district-council/wolverhampton","Arthur Brett (Catering) Limited","ID860561","76.86","Provisions (Resale)","130123431","10/06/16","Visitor Economy","Bantock - Tea Rooms","R4102"
"Wolverhampton City Council","http://opendatacommunities.org/id/metropolitan-district-council/wolverhampton","Arthur Brett (Catering) Limited","CN29311","-44.10","Provisions (Resale)","130123620","10/06/16","Older People Provider Services","Bradley Lodge Resource Centre","R4102"
"Wolverhampton City Council","http://opendatacommunities.org/id/metropolitan-district-council/wolverhampton","Arthur Brett (Catering) Limited","ID860210","109.63","Provisions (Resale)","130123124","10/06/16","Visitor Economy","Bantock - Tea Rooms","R4102"
"Wolverhampton City Council","http://opendatacommunities.org/id/metropolitan-district-council/wolverhampton","Arthur Brett (Catering) Limited","ID860547","131.82","Provisions (Resale)","130123430","10/06/16","Visitor Economy","Art Gallery Tea Room","R4102"
"Wolverhampton City Council","http://opendatacommunities.org/id/metropolitan-district-council/wolverhampton","Arthur Brett (Catering) Limited","ID855079 - credit correction","17.32","Provisions (Resale)","130126272","24/06/16","Learning Disability Provider","Duke Street Bungalows","R4102"
"Wolverhampton City Council","http://opendatacommunities.org/id/metropolitan-district-council/wolverhampton","Arthur Brett (Catering) Limited","ID855079 - Invoice","17.32","Provisions (Resale)","130126273","24/06/16","Learning Disability Provider","Duke Street Bungalows","R4102"
"Wolverhampton City Council","http://opendatacommunities.org/id/metropolitan-district-council/wolverhampton","Arthur J. Gallagher UK Limited","BR0017615 00009 AP GBP1 W612","3,930.00","Insurance - General","190236117","01/06/16","Audit Services","Property Insurances","R4962"
"Wolverhampton City Council","http://opendatacommunities.org/id/metropolitan-district-council/wolverhampton","Arthur M Griffiths & Son Limited","IN17111","164,521.83","Construction and Conversion","130125131","22/06/16","","Primary Expansion Programme","C1100"
"Wolverhampton City Council","http://opendatacommunities.org/id/metropolitan-district-council/wolverhampton","Arthur M Griffiths & Son Limited","IN17105","114,242.04","Construction and Conversion","130123856","08/06/16","","Primary Expansion Programme","C1100"
"Wolverhampton City Council","http://opendatacommunities.org/id/metropolitan-district-council/wolverhampton","Ashdown Supplies","13897","333.60","Materials","130125257","22/06/16","Bereavement Services","Cemeteries","R4007"
"Wolverhampton City Council","http://opendatacommunities.org/id/metropolitan-district-council/wolverhampton","Ashmore Park Community Association","APCAPACT15","180.00","Room Hire","130122836","01/06/16","Skills","Neighbourhood Safety North East","R2201"
"Wolverhampton City Council","http://opendatacommunities.org/id/metropolitan-district-council/wolverhampton","Ashmore Park Community Association","15","48.00","TPP - Public Health Contracts","130124827","17/06/16","Healthier Places Service","Healthy Lifestyles Team","R5060"
"Wolverhampton City Council","http://opendatacommunities.org/id/metropolitan-district-council/wolverhampton","Ashtead Plant Hire Company Limited","14307227","501.26","Equipment - Hire","130120906","08/06/16","Visitor Economy","Vaisakhi","R4001"
"Wolverhampton City Council","http://opendatacommunities.org/id/metropolitan-district-council/wolverhampton","Ashtead Plant Hire Company Limited","14307227","-501.26","Equipment - Hire","130120906","08/06/16","Visitor Economy","Vaisakhi","R4001"
"Wolverhampton City Council","http://opendatacommunities.org/id/metropolitan-district-council/wolverhampton","Ashtead Plant Hire Company Limited","14307227","288.00","Equipment - Hire","130120906","08/06/16","Visitor Economy","Vaisakhi","R4001"
"Wolverhampton City Council","http://opendatacommunities.org/id/metropolitan-district-council/wolverhampton","Ashtead Plant Hire Company Limited","14307227","213.26","Equipment - Hire","130120906","08/06/16","Visitor Economy","Vaisakhi","R4001"
"Wolverhampton City Council","http://opendatacommunities.org/id/metropolitan-district-council/wolverhampton","Ashton Engineering Co. Limited","4301","379.95","Equipment - Purchase","190245655","29/06/16","Fleet Services","Fleet Management","R4000"
"Wolverhampton City Council","http://opendatacommunities.org/id/metropolitan-district-council/wolverhampton","Askews & Holts Library Services Limited","5035725","474.04","Books","130121756","10/06/16","Library Services","Global Budgets","R4309"
"Wolverhampton City Council","http://opendatacommunities.org/id/metropolitan-district-council/wolverhampton","Askews & Holts Library Services Limited","5035724","134.01","Books","130121755","10/06/16","Library Services","Global Budgets","R4309"
"Wolverhampton City Council","http://opendatacommunities.org/id/metropolitan-district-council/wolverhampton","Askews & Holts Library Services Limited","5035723","454.13","Books","130121754","10/06/16","Library Services","Global Budgets","R4309"
"Wolverhampton City Council","http://opendatacommunities.org/id/metropolitan-district-council/wolverhampton","Askews & Holts Library Services Limited","5038681","309.07","Books","130122770","15/06/16","Library Services","Global Budgets","R4309"
"Wolverhampton City Council","http://opendatacommunities.org/id/metropolitan-district-council/wolverhampton","Askews & Holts Library Services Limited","5025853","553.97","Books","130120023","03/06/16","Library Services","Global Budgets","R4309"
"Wolverhampton City Council","http://opendatacommunities.org/id/metropolitan-district-council/wolverhampton","Askews & Holts Library Services Limited","5025854","38.72","Books","130120024","03/06/16","Library Services","Global Budgets","R4309"
"Wolverhampton City Council","http://opendatacommunities.org/id/metropolitan-district-council/wolverhampton","Askews & Holts Library Services Limited","5021333","11.55","Books","130119777","01/06/16","Library Services","Global Budgets","R4309"
"Wolverhampton City Council","http://opendatacommunities.org/id/metropolitan-district-council/wolverhampton","Askews & Holts Library Services Limited","5021332","544.93","Books","130119776","01/06/16","Library Services","Global Budgets","R4309"
"Wolverhampton City Council","http://opendatacommunities.org/id/metropolitan-district-council/wolverhampton","Askews & Holts Library Services Limited","5045219","245.25","Books","130123033","17/06/16","Library Services","Global Budgets","R4309"
"Wolverhampton City Council","http://opendatacommunities.org/id/metropolitan-district-council/wolverhampton","Askews & Holts Library Services Limited","5045218","49.84","Books","130123032","17/06/16","Library Services","Global Budgets","R4309"
"Wolverhampton City Council","http://opendatacommunities.org/id/metropolitan-district-council/wolverhampton","Askews & Holts Library Services Limited","5031290","327.90","Books","130120989","03/06/16","Library Services","Global Budgets","R4309"
"Wolverhampton City Council","http://opendatacommunities.org/id/metropolitan-district-council/wolverhampton","Askews & Holts Library Services Limited","5029854","138.15","Books","130120732","03/06/16","Library Services","Global Budgets","R4309"
"Wolverhampton City Council","http://opendatacommunities.org/id/metropolitan-district-council/wolverhampton","Askews & Holts Library Services Limited","5029855","117.94","Books","130120733","03/06/16","Library Services","Global Budgets","R4309"
"Wolverhampton City Council","http://opendatacommunities.org/id/metropolitan-district-council/wolverhampton","Askews & Holts Library Services Limited","5044091","93.66","Books","130122771","17/06/16","Library Services","Global Budgets","R4309"
"Wolverhampton City Council","http://opendatacommunities.org/id/metropolitan-district-council/wolverhampton","Askews & Holts Library Services Limited","5049790","20.86","Books","130123980","24/06/16","Library Services","Global Budgets","R4309"
"Wolverhampton City Council","http://opendatacommunities.org/id/metropolitan-district-council/wolverhampton","Askews & Holts Library Services Limited","5049791","269.66","Books","130123816","24/06/16","Library Services","Global Budgets","R4309"
"Wolverhampton City Council","http://opendatacommunities.org/id/metropolitan-district-council/wolverhampton","Askews & Holts Library Services Limited","5048481","17.16","Books","130123815","24/06/16","Library Services","Global Budgets","R4309"
"Wolverhampton City Council","http://opendatacommunities.org/id/metropolitan-district-council/wolverhampton","Assn Of Electoral Administrators","18946","4,821.88","Agency Staff","130122111","15/06/16","Democratic Services","Electoral Registration","R1100"
"Wolverhampton City Council","http://opendatacommunities.org/id/metropolitan-district-council/wolverhampton","Assn Of Electoral Administrators","18946","-4,821.88","Agency Staff","130122111","15/06/16","Democratic Services","Electoral Registration","R1100"
"Wolverhampton City Council","http://opendatacommunities.org/id/metropolitan-district-council/wolverhampton","Assn Of Electoral Administrators","18946","4,286.38","Agency Staff","130122111","15/06/16","Democratic Services","Electoral Registration","R1100"
"Wolverhampton City Council","http://opendatacommunities.org/id/metropolitan-district-council/wolverhampton","Assn Of Electoral Administrators","18946","535.50","Agency Staff","130122111","15/06/16","Democratic Services","Electoral Registration","R1100"
"Wolverhampton City Council","http://opendatacommunities.org/id/metropolitan-district-council/wolverhampton","Assoc Directors Adult Soc Serv-Adass","4818","499.00","Conference Expenses","130104598","22/06/16","Strategic Director People","Strategic Director People","R4611"
"Wolverhampton City Council","http://opendatacommunities.org/id/metropolitan-district-council/wolverhampton","Associated  Radio Taxi�s","8781","902.50","Client Transport","130124435","10/06/16","School Planning & Resources","Secondary- Transport","R3042"
"Wolverhampton City Council","http://opendatacommunities.org/id/metropolitan-district-council/wolverhampton","Associated  Radio Taxi�s","8781","-902.50","Client Transport","130124435","10/06/16","School Planning & Resources","Secondary- Transport","R3042"
"Wolverhampton City Council","http://opendatacommunities.org/id/metropolitan-district-council/wolverhampton","Associated  Radio Taxi�s","8781","902.50","Client Transport","130124435","10/06/16","School Planning & Resources","Secondary- Transport","R3042"
"Wolverhampton City Council","http://opendatacommunities.org/id/metropolitan-district-council/wolverhampton","Associated  Radio Taxi�s","8782","743.40","Client Transport","130124436","10/06/16","School Planning & Resources","Special - Transport","R3042"
"Wolverhampton City Council","http://opendatacommunities.org/id/metropolitan-district-council/wolverhampton","Associated  Radio Taxi�s","8782","-743.40","Client Transport","130124436","10/06/16","School Planning & Resources","Special - Transport","R3042"
"Wolverhampton City Council","http://opendatacommunities.org/id/metropolitan-district-council/wolverhampton","Associated  Radio Taxi�s","8782","743.40","Client Transport","130124436","10/06/16","School Planning & Resources","Special - Transport","R3042"
"Wolverhampton City Council","http://opendatacommunities.org/id/metropolitan-district-council/wolverhampton","Associated  Radio Taxi�s","8780","1,049.94","Client Transport","130124434","10/06/16","School Planning & Resources","Secondary- Transport","R3042"
"Wolverhampton City Council","http://opendatacommunities.org/id/metropolitan-district-council/wolverhampton","Associated  Radio Taxi�s","8778","593.75","Client Transport","130124898","22/06/16","School Planning & Resources","Special - Transport","R3042"
"Wolverhampton City Council","http://opendatacommunities.org/id/metropolitan-district-council/wolverhampton","Associated  Radio Taxi�s","8778","-593.75","Client Transport","130124898","22/06/16","School Planning & Resources","Special - Transport","R3042"
"Wolverhampton City Council","http://opendatacommunities.org/id/metropolitan-district-council/wolverhampton","Associated  Radio Taxi�s","8778","593.75","Client Transport","130124898","22/06/16","School Planning & Resources","Special - Transport","R3042"
"Wolverhampton City Council","http://opendatacommunities.org/id/metropolitan-district-council/wolverhampton","Associated  Radio Taxi�s","8767","797.60","Client Transport","130121012","08/06/16","School Planning & Resources","Special - Transport","R3042"
"Wolverhampton City Council","http://opendatacommunities.org/id/metropolitan-district-council/wolverhampton","Associated  Radio Taxi�s","8767","-797.60","Client Transport","130121012","08/06/16","School Planning & Resources","Special - Transport","R3042"
"Wolverhampton City Council","http://opendatacommunities.org/id/metropolitan-district-council/wolverhampton","Associated  Radio Taxi�s","8767","797.60","Client Transport","130121012","08/06/16","School Planning & Resources","Special - Transport","R3042"
"Wolverhampton City Council","http://opendatacommunities.org/id/metropolitan-district-council/wolverhampton","Associated  Radio Taxi�s","8769","665.00","Client Transport","130121014","08/06/16","School Planning & Resources","Secondary- Transport","R3042"
"Wolverhampton City Council","http://opendatacommunities.org/id/metropolitan-district-council/wolverhampton","Associated  Radio Taxi�s","8769","-665.00","Client Transport","130121014","08/06/16","School Planning & Resources","Secondary- Transport","R3042"
"Wolverhampton City Council","http://opendatacommunities.org/id/metropolitan-district-council/wolverhampton","Associated  Radio Taxi�s","8769","665.00","Client Transport","130121014","08/06/16","School Planning & Resources","Secondary- Transport","R3042"
"Wolverhampton City Council","http://opendatacommunities.org/id/metropolitan-district-council/wolverhampton","Associated  Radio Taxi�s","8768","546.25","Client Transport","130121013","08/06/16","School Planning & Resources","Special - Transport","R3042"
"Wolverhampton City Council","http://opendatacommunities.org/id/metropolitan-district-council/wolverhampton","Associated  Radio Taxi�s","8768","-546.25","Client Transport","130121013","08/06/16","School Planning & Resources","Special - Transport","R3042"
"Wolverhampton City Council","http://opendatacommunities.org/id/metropolitan-district-council/wolverhampton","Associated  Radio Taxi�s","8768","546.25","Client Transport","130121013","08/06/16","School Planning & Resources","Special - Transport","R3042"
"Wolverhampton City Council","http://opendatacommunities.org/id/metropolitan-district-council/wolverhampton","Associated  Radio Taxi�s","8772","536.90","Client Transport","130121017","08/06/16","School Planning & Resources","Special - Transport","R3042"
"Wolverhampton City Council","http://opendatacommunities.org/id/metropolitan-district-council/wolverhampton","Associated  Radio Taxi�s","8772","-536.90","Client Transport","130121017","08/06/16","School Planning & Resources","Special - Transport","R3042"
"Wolverhampton City Council","http://opendatacommunities.org/id/metropolitan-district-council/wolverhampton","Associated  Radio Taxi�s","8772","536.90","Client Transport","130121017","08/06/16","School Planning & Resources","Special - Transport","R3042"
"Wolverhampton City Council","http://opendatacommunities.org/id/metropolitan-district-council/wolverhampton","Associated  Radio Taxi�s","02073","153.50","Client Transport","130123494","08/06/16","Children With Disabilities","Childrens with Disabilities Team","R3042"
"Wolverhampton City Council","http://opendatacommunities.org/id/metropolitan-district-council/wolverhampton","Associated  Radio Taxi�s","02073","-153.50","Client Transport","130123494","08/06/16","Children With Disabilities","Childrens with Disabilities Team","R3042"
"Wolverhampton City Council","http://opendatacommunities.org/id/metropolitan-district-council/wolverhampton","Associated  Radio Taxi�s","02073","153.30","Client Transport","130123494","08/06/16","Children With Disabilities","Childrens with Disabilities Team","R3042"
"Wolverhampton City Council","http://opendatacommunities.org/id/metropolitan-district-council/wolverhampton","Associated  Radio Taxi�s","02074","25.30","Client Transport","130123495","15/06/16","Learning Disability Provider","Ernest Bold Court","R3042"
"Wolverhampton City Council","http://opendatacommunities.org/id/metropolitan-district-council/wolverhampton","Associated  Radio Taxi�s","02074","-25.30","Client Transport","130123495","15/06/16","Learning Disability Provider","Ernest Bold Court","R3042"
"Wolverhampton City Council","http://opendatacommunities.org/id/metropolitan-district-council/wolverhampton","Associated  Radio Taxi�s","02074","25.30","Client Transport","130123495","15/06/16","Learning Disability Provider","Ernest Bold Court","R3042"
"Wolverhampton City Council","http://opendatacommunities.org/id/metropolitan-district-council/wolverhampton","Associated  Radio Taxi�s","8784","1,049.94","Client Transport","130126036","29/06/16","School Planning & Resources","Secondary- Transport","R3042"
"Wolverhampton City Council","http://opendatacommunities.org/id/metropolitan-district-council/wolverhampton","Associated  Radio Taxi�s","8784","-1,049.94","Client Transport","130126036","29/06/16","School Planning & Resources","Secondary- Transport","R3042"
"Wolverhampton City Council","http://opendatacommunities.org/id/metropolitan-district-council/wolverhampton","Associated  Radio Taxi�s","8784","1,049.94","Client Transport","130126036","29/06/16","School Planning & Resources","Secondary- Transport","R3042"
"Wolverhampton City Council","http://opendatacommunities.org/id/metropolitan-district-council/wolverhampton","Associated  Radio Taxi�s","8753","1,170.72","Client Transport","130116332","10/06/16","School Planning & Resources","Secondary- Transport","R3042"
"Wolverhampton City Council","http://opendatacommunities.org/id/metropolitan-district-council/wolverhampton","Associated  Radio Taxi�s","8753","-65.04","Client Transport","130116332","10/06/16","School Planning & Resources","Secondary- Transport","R3042"
"Wolverhampton City Council","http://opendatacommunities.org/id/metropolitan-district-council/wolverhampton","Associated  Radio Taxi�s","8759","855.00","Client Transport","130116337","10/06/16","School Planning & Resources","Secondary- Transport","R3042"
"Wolverhampton City Council","http://opendatacommunities.org/id/metropolitan-district-council/wolverhampton","Associated  Radio Taxi�s","02072","202.90","Client Transport","130123493","10/06/16","Children With Disabilities","Childrens with Disabilities Team","R3042"
"Wolverhampton City Council","http://opendatacommunities.org/id/metropolitan-district-council/wolverhampton","Associated  Radio Taxi�s","02072","-202.90","Client Transport","130123493","10/06/16","Children With Disabilities","Childrens with Disabilities Team","R3042"
"Wolverhampton City Council","http://opendatacommunities.org/id/metropolitan-district-council/wolverhampton","Associated  Radio Taxi�s","02072","202.90","Client Transport","130123493","10/06/16","Children With Disabilities","Childrens with Disabilities Team","R3042"
"Wolverhampton City Council","http://opendatacommunities.org/id/metropolitan-district-council/wolverhampton","Associated  Radio Taxi�s","02004","393.60","Client Transport","130119957","10/06/16","Children in Need & Child Protection","Valley Park - CIN  Social Work Unit - S17","R3042"
"Wolverhampton City Council","http://opendatacommunities.org/id/metropolitan-district-council/wolverhampton","Associated  Radio Taxi�s","02004","-393.60","Client Transport","130119957","10/06/16","Children in Need & Child Protection","Valley Park - CIN  Social Work Unit - S17","R3042"
"Wolverhampton City Council","http://opendatacommunities.org/id/metropolitan-district-council/wolverhampton","Associated  Radio Taxi�s","02004","393.60","Client Transport","130119957","10/06/16","Children in Need & Child Protection","Valley Park - CIN  Social Work Unit - S17","R3042"
"Wolverhampton City Council","http://opendatacommunities.org/id/metropolitan-district-council/wolverhampton","Associated  Radio Taxi�s","8354","475.00","Client Transport","130112460","10/06/16","School Planning & Resources","Special - Transport","R3042"
"Wolverhampton City Council","http://opendatacommunities.org/id/metropolitan-district-council/wolverhampton","Associated  Radio Taxi�s","8774","1,125.94","Client Transport","130124428","10/06/16","School Planning & Resources","Primary - Transport","R3042"
"Wolverhampton City Council","http://opendatacommunities.org/id/metropolitan-district-council/wolverhampton","Associated  Radio Taxi�s","8776","1,018.78","Client Transport","130124430","10/06/16","School Planning & Resources","Primary - Transport","R3042"
"Wolverhampton City Council","http://opendatacommunities.org/id/metropolitan-district-council/wolverhampton","Associated  Radio Taxi�s","8780","1,049.94","Client Transport","130124434","10/06/16","School Planning & Resources","Secondary- Transport","R3042"
"Wolverhampton City Council","http://opendatacommunities.org/id/metropolitan-district-council/wolverhampton","Associated  Radio Taxi�s","8780","-1,049.94","Client Transport","130124434","10/06/16","School Planning & Resources","Secondary- Transport","R3042"
"Wolverhampton City Council","http://opendatacommunities.org/id/metropolitan-district-council/wolverhampton","Associated  Radio Taxi�s","8779","1,197.66","Client Transport","130124433","10/06/16","School Planning & Resources","Primary - Transport","R3042"
"Wolverhampton City Council","http://opendatacommunities.org/id/metropolitan-district-council/wolverhampton","Associated  Radio Taxi�s","8779","-1,197.66","Client Transport","130124433","10/06/16","School Planning & Resources","Primary - Transport","R3042"
"Wolverhampton City Council","http://opendatacommunities.org/id/metropolitan-district-council/wolverhampton","Associated  Radio Taxi�s","8779","1,197.66","Client Transport","130124433","10/06/16","School Planning & Resources","Primary - Transport","R3042"
"Wolverhampton City Council","http://opendatacommunities.org/id/metropolitan-district-council/wolverhampton","Associated  Radio Taxi�s","8777","754.17","Client Transport","130124896","22/06/16","School Planning & Resources","Special - Transport","R3042"
"Wolverhampton City Council","http://opendatacommunities.org/id/metropolitan-district-council/wolverhampton","Associated  Radio Taxi�s","8777","-754.17","Client Transport","130124896","22/06/16","School Planning & Resources","Special - Transport","R3042"
"Wolverhampton City Council","http://opendatacommunities.org/id/metropolitan-district-council/wolverhampton","Associated  Radio Taxi�s","8777","754.17","Client Transport","130124896","22/06/16","School Planning & Resources","Special - Transport","R3042"
"Wolverhampton City Council","http://opendatacommunities.org/id/metropolitan-district-council/wolverhampton","Pelican Rouge Coffee Solutions Limited","160019594","101.90","Provisions (Resale)","130122974","15/06/16","Catering","Civic Centre Catering","R4102"
"Wolverhampton City Council","http://opendatacommunities.org/id/metropolitan-district-council/wolverhampton","Pelican Rouge Coffee Solutions Limited","160019594","-101.90","Provisions (Resale)","130122974","15/06/16","Catering","Civic Centre Catering","R4102"
"Wolverhampton City Council","http://opendatacommunities.org/id/metropolitan-district-council/wolverhampton","Pelican Rouge Coffee Solutions Limited","160019594","101.90","Provisions (Resale)","130122974","15/06/16","Catering","Civic Centre Catering","R4102"
"Wolverhampton City Council","http://opendatacommunities.org/id/metropolitan-district-council/wolverhampton","Pelican Rouge Coffee Solutions Limited","160025159","50.01","Equipment - Hire","130124330","24/06/16","Democratic Services","Members Expenses","R4001"
"Wolverhampton City Council","http://opendatacommunities.org/id/metropolitan-district-council/wolverhampton","Autoguard Alarms Limited","137416","239.75","Fixtures and Fittings - R&M","130126147","24/06/16","Facilities Management","Bingley Site","R2502"
"Wolverhampton City Council","http://opendatacommunities.org/id/metropolitan-district-council/wolverhampton","Axiom Building Solutions","01650","825.00","R&M - Departmental planned (external)","130124063","10/06/16","Maintenance Programme","Centralised R&M","R2001"
"Wolverhampton City Council","http://opendatacommunities.org/id/metropolitan-district-council/wolverhampton","Axiom Building Solutions","02452","2,875.00","R&M - Departmental planned (external)","130121872","10/06/16","Facilities Management","Management of Vacant Properties","R2001"
"Wolverhampton City Council","http://opendatacommunities.org/id/metropolitan-district-council/wolverhampton","Axiom Building Solutions","02501","21,650.00","Construction and Conversion","130123714","24/06/16","","Primary Expansion Programme","C1100"
"Wolverhampton City Council","http://opendatacommunities.org/id/metropolitan-district-council/wolverhampton","Axiom Building Solutions","01922","100.00","R&M - Departmental planned (external)","130124576","15/06/16","Facilities Management","Civic Centre","R2001"
"Wolverhampton City Council","http://opendatacommunities.org/id/metropolitan-district-council/wolverhampton","Axiom Building Solutions","01857","1,450.00","R&M - Departmental planned (external)","130124575","15/06/16","Facilities Management","Civic Centre","R2001"
"Wolverhampton City Council","http://opendatacommunities.org/id/metropolitan-district-council/wolverhampton","Badenoch & Clark Recruit. Specialist","Y16837/00","2,750.00","Agency Staff","130123157","22/06/16","Service Director Disability & Mental Health","Service Director Disability & Mental Health","R1100"
"Wolverhampton City Council","http://opendatacommunities.org/id/metropolitan-district-council/wolverhampton","Badenoch & Clark Recruit. Specialist","Y22772/00","1,100.00","Agency Staff","130123694","22/06/16","Service Director Disability & Mental Health","Service Director Disability & Mental Health","R1100"
"Wolverhampton City Council","http://opendatacommunities.org/id/metropolitan-district-council/wolverhampton","Badenoch & Clark Recruit. Specialist","Y34908/00","2,050.00","Agency Staff","130124892","22/06/16","Commercial Services","Corporate Procurement Unit","R1100"
"Wolverhampton City Council","http://opendatacommunities.org/id/metropolitan-district-council/wolverhampton","Badenoch & Clark Recruit. Specialist","Y12800/00","2,362.50","Agency Staff","130122887","15/06/16","Organisational Development","Corporate Programmes","R1100"
"Wolverhampton City Council","http://opendatacommunities.org/id/metropolitan-district-council/wolverhampton","Badenoch & Clark Recruit. Specialist","4791314","1,451.09","Agency Staff","130120385","15/06/16","Strategic Finance","Strategic Finance","R1100"
"Wolverhampton City Council","http://opendatacommunities.org/id/metropolitan-district-council/wolverhampton","Badenoch & Clark Recruit. Specialist","Y25986/00","2,412.00","Agency Staff","130124059","15/06/16","Commercial Services","Corporate Procurement Unit","R1100"
"Wolverhampton City Council","http://opendatacommunities.org/id/metropolitan-district-council/wolverhampton","Badenoch & Clark Recruit. Specialist","Y15293/00","1,899.40","Agency Staff","130123156","08/06/16","Strategic Finance","Strategic Finance","R1100"
"Wolverhampton City Council","http://opendatacommunities.org/id/metropolitan-district-council/wolverhampton","Badenoch & Clark Recruit. Specialist","Y22700/00","1,647.04","Agency Staff","130123693","08/06/16","Strategic Finance","Strategic Finance","R1100"
"Wolverhampton City Council","http://opendatacommunities.org/id/metropolitan-district-council/wolverhampton","Badenoch & Clark Recruit. Specialist","4777063","2,050.00","Agency Staff","130114553","08/06/16","Commercial Services","Corporate Procurement Unit","R1100"
"Wolverhampton City Council","http://opendatacommunities.org/id/metropolitan-district-council/wolverhampton","Badenoch & Clark Recruit. Specialist","Y15230/00","3,015.00","Agency Staff","130123155","08/06/16","Commercial Services","Corporate Procurement Unit","R1100"
"Wolverhampton City Council","http://opendatacommunities.org/id/metropolitan-district-council/wolverhampton","Badenoch & Clark Recruit. Specialist","Y16897/00","2,050.00","Agency Staff","130123158","08/06/16","Commercial Services","Corporate Procurement Unit","R1100"
"Wolverhampton City Council","http://opendatacommunities.org/id/metropolitan-district-council/wolverhampton","Badenoch & Clark Recruit. Specialist","4777067","1,640.00","Agency Staff","130114557","08/06/16","Commercial Services","Corporate Procurement Unit","R1100"
"Wolverhampton City Council","http://opendatacommunities.org/id/metropolitan-district-council/wolverhampton","Badenoch & Clark Recruit. Specialist","Y31970/00","2,200.00","Agency Staff","130124786","29/06/16","Service Director Disability & Mental Health","Service Director Disability & Mental Health","R1100"
"Wolverhampton City Council","http://opendatacommunities.org/id/metropolitan-district-council/wolverhampton","Badenoch & Clark Recruit. Specialist","Y42220/00","2,750.00","Agency Staff","130125892","29/06/16","Service Director Disability & Mental Health","Service Director Disability & Mental Health","R1100"
"Wolverhampton City Council","http://opendatacommunities.org/id/metropolitan-district-council/wolverhampton","Badenoch & Clark Recruit. Specialist","Y44321/00","2,050.00","Agency Staff","130126102","29/06/16","Commercial Services","Corporate Procurement Unit","R1100"
"Wolverhampton City Council","http://opendatacommunities.org/id/metropolitan-district-council/wolverhampton","Badenoch & Clark Recruit. Specialist","Y49177/00","2,200.00","Agency Staff","130126409","29/06/16","Service Director Disability & Mental Health","Service Director Disability & Mental Health","R1100"
"Wolverhampton City Council","http://opendatacommunities.org/id/metropolitan-district-council/wolverhampton","Badenoch & Clark Recruit. Specialist","4777070","2,750.00","Agency Staff","130114560","03/06/16","Service Director Disability & Mental Health","Service Director Disability & Mental Health","R1100"
"Wolverhampton City Council","http://opendatacommunities.org/id/metropolitan-district-council/wolverhampton","Badenoch & Clark Recruit. Specialist","Y02636/00","2,750.00","Agency Staff","130121667","03/06/16","Service Director Disability & Mental Health","Service Director Disability & Mental Health","R1100"
"Wolverhampton City Council","http://opendatacommunities.org/id/metropolitan-district-council/wolverhampton","Badenoch & Clark Recruit. Specialist","Y12963/00","1,647.04","Agency Staff","130122888","03/06/16","Strategic Finance","Strategic Finance","R1100"
"Wolverhampton City Council","http://opendatacommunities.org/id/metropolitan-district-council/wolverhampton","Badenoch & Clark Recruit. Specialist","Y05899/00","2,750.00","Agency Staff","130122052","03/06/16","ICTS","Digital Transformation Programme","R1100"
"Wolverhampton City Council","http://opendatacommunities.org/id/metropolitan-district-council/wolverhampton","Badenoch & Clark Recruit. Specialist","Y05898/00","2,750.00","Agency Staff","130122051","03/06/16","ICTS","Digital Transformation Programme","R1100"
"Wolverhampton City Council","http://opendatacommunities.org/id/metropolitan-district-council/wolverhampton","Badenoch & Clark Recruit. Specialist","Y20198/00","448.31","Agency Staff","130123467","03/06/16","Strategic Finance","Strategic Finance","R1100"
"Wolverhampton City Council","http://opendatacommunities.org/id/metropolitan-district-council/wolverhampton","Badenoch & Clark Recruit. Specialist","4777069","3,015.00","Agency Staff","130114559","03/06/16","Commercial Services","Corporate Procurement Unit","R1100"
"Wolverhampton City Council","http://opendatacommunities.org/id/metropolitan-district-council/wolverhampton","Badenoch & Clark Recruit. Specialist","Y30930/00","1,235.28","Agency Staff","130124785","17/06/16","Strategic Finance","Strategic Finance","R1100"
"Wolverhampton City Council","http://opendatacommunities.org/id/metropolitan-district-council/wolverhampton","Badenoch & Clark Recruit. Specialist","Y34341/00","1,085.37","Agency Staff","130124891","17/06/16","Strategic Finance","Strategic Finance","R1100"
"Wolverhampton City Council","http://opendatacommunities.org/id/metropolitan-district-council/wolverhampton","Badenoch & Clark Recruit. Specialist","Y05943/00","2,058.80","Agency Staff","130122053","01/06/16","Strategic Finance","Strategic Finance","R1100"
"Wolverhampton City Council","http://opendatacommunities.org/id/metropolitan-district-council/wolverhampton","Badenoch & Clark Recruit. Specialist","Y09328/00","2,362.50","Agency Staff","130122207","01/06/16","Organisational Development","Corporate Programmes","R1100"
"Wolverhampton City Council","http://opendatacommunities.org/id/metropolitan-district-council/wolverhampton","Badenoch & Clark Recruit. Specialist","4777064","2,700.00","Agency Staff","130114554","01/06/16","Service Director Older People","Service Director Older People","R1100"
"Wolverhampton City Council","http://opendatacommunities.org/id/metropolitan-district-council/wolverhampton","Badenoch & Clark Recruit. Specialist","4792666","2,160.00","Agency Staff","130120724","01/06/16","Service Director Older People","Service Director Older People","R1100"
"Wolverhampton City Council","http://opendatacommunities.org/id/metropolitan-district-council/wolverhampton","Badenoch & Clark Recruit. Specialist","Y02729/00","2,050.00","Agency Staff","130121669","01/06/16","Commercial Services","Corporate Procurement Unit","R1100"
"Wolverhampton City Council","http://opendatacommunities.org/id/metropolitan-district-council/wolverhampton","Badenoch & Clark Recruit. Specialist","Y04751/00","3,015.00","Agency Staff","130122049","01/06/16","Commercial Services","Corporate Procurement Unit","R1100"
"Wolverhampton City Council","http://opendatacommunities.org/id/metropolitan-district-council/wolverhampton","Badenoch & Clark Recruit. Specialist","Y05897/00","2,200.00","Agency Staff","130122050","01/06/16","ICTS","Digital Transformation Programme","R1100"
"Wolverhampton City Council","http://opendatacommunities.org/id/metropolitan-district-council/wolverhampton","Badenoch & Clark Recruit. Specialist","Y22657/00","2,750.00","Agency Staff","130123692","10/06/16","ICTS","Digital Transformation Programme","R1100"
"Wolverhampton City Council","http://opendatacommunities.org/id/metropolitan-district-council/wolverhampton","Bains Supersave Limited","025","50.95","Books","130122467","03/06/16","Library Services","Global Budgets","R4309"
"Wolverhampton City Council","http://opendatacommunities.org/id/metropolitan-district-council/wolverhampton","Bains Supersave Limited","026","38.70","Books","130124468","15/06/16","Library Services","Global Budgets","R4309"
"Wolverhampton City Council","http://opendatacommunities.org/id/metropolitan-district-council/wolverhampton","Bakare Beds Limited","44568","6,502.00","Equipment - Purchase","130125638","22/06/16","Independent Living Service","Independent Living Service","R4000"
"Wolverhampton City Council","http://opendatacommunities.org/id/metropolitan-district-council/wolverhampton","Baker Hall Limited","WV/05/16","1,347.50","Services - Consultants","130124058","24/06/16","Planning","Building Consultancy","R4404"
"Wolverhampton City Council","http://opendatacommunities.org/id/metropolitan-district-council/wolverhampton","Barts Busy Bees","NEF Sum 16 Inst 1","6,291.00","TPP - Private Nursery Education Funding","190238616","03/06/16","Childrens Centres & Early Years","Early Years Non Maintained Schools","R5035"
"Wolverhampton City Council","http://opendatacommunities.org/id/metropolitan-district-council/wolverhampton","Barts Busy Bees","T42 Sum 16 Inst 1","5,240.70","Grant Payments","190238621","03/06/16","Childrens Centres & Early Years","2 Year Olds Pilot - Early Learning & Childcare","R4700"
"Wolverhampton City Council","http://opendatacommunities.org/id/metropolitan-district-council/wolverhampton","Bbp.Security Services & Training Limited","036WCC250516","3,830.00","Services - Security","130122082","01/06/16","Maintenance Programme","Centralised R&M","R4405"
"Wolverhampton City Council","http://opendatacommunities.org/id/metropolitan-district-council/wolverhampton","Bbp.Security Services & Training Limited","971LCIV250516","1,582.42","Services - Security","130122168","01/06/16","Visitor Economy","The Little Civic","R4405"
"Wolverhampton City Council","http://opendatacommunities.org/id/metropolitan-district-council/wolverhampton","Bbp.Security Services & Training Limited","973LCIV250516","1,339.71","Services - Security","130122169","01/06/16","Visitor Economy","The Little Civic","R4405"
"Wolverhampton City Council","http://opendatacommunities.org/id/metropolitan-district-council/wolverhampton","Bbp.Security Services & Training Limited","001BHM250516","300.00","Services - Security","130122071","01/06/16","Visitor Economy","Bantock House Museum","R4405"
"Wolverhampton City Council","http://opendatacommunities.org/id/metropolitan-district-council/wolverhampton","Bbp.Security Services & Training Limited","037WCC060616","720.00","Services - Security","130123715","10/06/16","Facilities Management","i10 Facilities Management","R4405"
"Wolverhampton City Council","http://opendatacommunities.org/id/metropolitan-district-council/wolverhampton","Bbp.Security Services & Training Limited","038TM060616","3,645.00","Services - Security","130123716","10/06/16","Licensing","Licensing - Hackney Carriages","R4405"
"Wolverhampton City Council","http://opendatacommunities.org/id/metropolitan-district-council/wolverhampton","Bbp.Security Services & Training Limited","038WCC070616","2,400.00","Services - Security","130123943","10/06/16","Facilities Management","Parkfields Office Accomodation","R4405"
"Wolverhampton City Council","http://opendatacommunities.org/id/metropolitan-district-council/wolverhampton","BCC Mac T/A St Edmund�s Catholic","P12107420160620","600.00","Grant Payments to Individuals","190243738","22/06/16","Looked After Children","LAC Education Team (LACE)","R6402"
"Wolverhampton City Council","http://opendatacommunities.org/id/metropolitan-district-council/wolverhampton","BCC Mac T/A St Edmund�s Catholic","P12107420160620","600.00","Grant Payments to Individuals","190243738","22/06/16","Looked After Children","LAC Education Team (LACE)","R6402"
"Wolverhampton City Council","http://opendatacommunities.org/id/metropolitan-district-council/wolverhampton","BCC Mac T/A St Edmund�s Catholic","P12107420160620","600.00","Grant Payments to Individuals","190243738","22/06/16","Looked After Children","LAC Education Team (LACE)","R6402"
"Wolverhampton City Council","http://opendatacommunities.org/id/metropolitan-district-council/wolverhampton","BCC Mac T/A St Edmund�s Catholic","P12107420160620","600.00","Grant Payments to Individuals","190243738","22/06/16","Looked After Children","LAC Education Team (LACE)","R6402"
"Wolverhampton City Council","http://opendatacommunities.org/id/metropolitan-district-council/wolverhampton","BCC Mac T/A St Edmund�s Catholic","P12107420160620","600.00","Grant Payments to Individuals","190243738","22/06/16","Looked After Children","LAC Education Team (LACE)","R6402"
"Wolverhampton City Council","http://opendatacommunities.org/id/metropolitan-district-council/wolverhampton","BCC Mac T/A St Teresa�S Catholic","St Teresa dsc mls Mar 16 adj","3.75","School Meals","190245097","29/06/16","Schools","Discounted School Meals Scheme","R4103"
"Wolverhampton City Council","http://opendatacommunities.org/id/metropolitan-district-council/wolverhampton","SS Peter & Paul Cath. Primary & Nursery","P12107420160620","600.00","Grant Payments to Individuals","190243738","22/06/16","Looked After Children","LAC Education Team (LACE)","R6402"
"Wolverhampton City Council","http://opendatacommunities.org/id/metropolitan-district-council/wolverhampton","Beacon Centre For The Blind","BCI23608","4,900.00","TPP - Day Care","130123414","03/06/16","Older People Commissioning","OP Care Purchasing (Block Placements)","R5430"
"Wolverhampton City Council","http://opendatacommunities.org/id/metropolitan-district-council/wolverhampton","Beacon Land Surveys","2016098","375.00","Services - Professional Fees","130124339","10/06/16","Environmental Maintenance","Parks / Open Spaces - Repairs & Maintenance","R4400"
"Wolverhampton City Council","http://opendatacommunities.org/id/metropolitan-district-council/wolverhampton","Berendsen UK Limited","SN2404916","186.52","Protective Clothing","190243996","22/06/16","Fleet Services","Fleet Management","R4200"
"Wolverhampton City Council","http://opendatacommunities.org/id/metropolitan-district-council/wolverhampton","Berrybrook Primary School Fund A/C","BB000023","4,500.00","Services - Professional Fees","130123175","03/06/16","Schools","Dunstall Hill Primary School","R4400"
"Wolverhampton City Council","http://opendatacommunities.org/id/metropolitan-district-council/wolverhampton","Berrybrook Primary School Fund A/C","BB000022","1,250.00","Comms - Telephone Rental","130126055","24/06/16","Early Intervention and Prevention","EIP Locality 7","R4504"
"Wolverhampton City Council","http://opendatacommunities.org/id/metropolitan-district-council/wolverhampton","Beverages Direct Limited","681696","195.00","Provisions (Resale)","130126527","29/06/16","Catering","Education Catering - General Overheads","R4102"
"Wolverhampton City Council","http://opendatacommunities.org/id/metropolitan-district-council/wolverhampton","Birmingham CC - General Fund","9001971358","10,813.70","Services - Professional Fees","130124709","15/06/16","Central Corporate Budgets","Corporate Directorate Development","R4400"
"Wolverhampton City Council","http://opendatacommunities.org/id/metropolitan-district-council/wolverhampton","Birmingham CC - General Fund","9001929454","468.00","Client Transport","130124236","10/06/16","Looked After Children","Pupil Premium","R3042"
"Wolverhampton City Council","http://opendatacommunities.org/id/metropolitan-district-council/wolverhampton","Birmingham Womens NHS Foundation Trust","OP/1143067","900.00","Services - Professional Fees","130122868","08/06/16","Bereavement Services","Coroners","R4400"
"Wolverhampton City Council","http://opendatacommunities.org/id/metropolitan-district-council/wolverhampton","Black Country Consortium Limited","1649","24,350.00","TPP - Payments to Local Authorities","130123539","08/06/16","Central Corporate Budgets","Combined Authority","R5100"
"Wolverhampton City Council","http://opendatacommunities.org/id/metropolitan-district-council/wolverhampton","Blackmarston School","P12169920160627","600.00","Grant Payments to Individuals","190245323","29/06/16","Looked After Children","LAC Education Team (LACE)","R6402"
"Wolverhampton City Council","http://opendatacommunities.org/id/metropolitan-district-council/wolverhampton","Blakenhall Neighbourhood Nursery","NEF Sum 16 Inst 1","14,817.60","TPP - Private Nursery Education Funding","190238616","03/06/16","Childrens Centres & Early Years","Early Years Non Maintained Schools","R5035"
"Wolverhampton City Council","http://opendatacommunities.org/id/metropolitan-district-council/wolverhampton","Blakenhall Neighbourhood Nursery","T42 Sum 16 Inst 1","14,055.00","Grant Payments","190238621","03/06/16","Childrens Centres & Early Years","2 Year Olds Pilot - Early Learning & Childcare","R4700"
"Wolverhampton City Council","http://opendatacommunities.org/id/metropolitan-district-council/wolverhampton","Blue Diamond Stl","0000173940","158.76","Materials","130118711","22/06/16","Operation & Maintenance of Existing Network","Condition Surveys","R4007"
"Wolverhampton City Council","http://opendatacommunities.org/id/metropolitan-district-council/wolverhampton","Blue Group Interntl Limited T/A Bluecare","HSOC5563251","1,020.00","Agency Staff","130122655","08/06/16","Children in Need & Child Protection","CIN/CP Social Work Unit - Area 4","R1100"
"Wolverhampton City Council","http://opendatacommunities.org/id/metropolitan-district-council/wolverhampton","Blue Group Interntl Limited T/A Bluecare","HSOC5563252","1,020.00","Agency Staff","130122654","08/06/16","Children in Need & Child Protection","CIN/CP Social Work Unit - Area 4","R1100"
"Wolverhampton City Council","http://opendatacommunities.org/id/metropolitan-district-council/wolverhampton","Blue Group Interntl Limited T/A Bluecare","HSOC5576421","1,369.00","Agency Staff","130121787","15/06/16","Children in Need & Child Protection","CIN/CP Social Work Unit - Area 3B","R1100"
"Wolverhampton City Council","http://opendatacommunities.org/id/metropolitan-district-council/wolverhampton","Blue Group Interntl Limited T/A Bluecare","HSOC5575854","765.00","Agency Staff","130121416","10/06/16","Children in Need & Child Protection","CIN/CP Social Work Unit - Area 4","R1100"
"Wolverhampton City Council","http://opendatacommunities.org/id/metropolitan-district-council/wolverhampton","Blue Group Interntl Limited T/A Bluecare","HSOC5573636","1,020.00","Agency Staff","130125509","24/06/16","Children in Need & Child Protection","CIN/CP Social Work Unit - Area 4","R1100"
"Wolverhampton City Council","http://opendatacommunities.org/id/metropolitan-district-council/wolverhampton","Blue Group Interntl Limited T/A Bluecare","HSOC5571248","1,020.00","Agency Staff","130125505","24/06/16","Children in Need & Child Protection","CIN/CP Social Work Unit - Area 4","R1100"
"Wolverhampton City Council","http://opendatacommunities.org/id/metropolitan-district-council/wolverhampton","Blue Group Interntl Limited T/A Bluecare","HSOC5573637A","1,258.00","Agency Staff","130125510","24/06/16","Children in Need & Child Protection","CIN/CP Social Work Unit - Area 4","R1100"
"Wolverhampton City Council","http://opendatacommunities.org/id/metropolitan-district-council/wolverhampton","Blue Group Interntl Limited T/A Bluecare","HSOC5571247","1,020.00","Agency Staff","130125504","24/06/16","Children in Need & Child Protection","CIN/CP Social Work Unit - Area 4","R1100"
"Wolverhampton City Council","http://opendatacommunities.org/id/metropolitan-district-council/wolverhampton","Blue Group Interntl Limited T/A Bluecare","HSOC5578047","540.00","Agency Staff","130125513","24/06/16","Children in Need & Child Protection","CIN/CP Social Work Unit - Area 4","R1100"
"Wolverhampton City Council","http://opendatacommunities.org/id/metropolitan-district-council/wolverhampton","Blue Group Interntl Limited T/A Bluecare","HSOC5572145","1,008.00","Agency Staff","130119888","03/06/16","Children in Need & Child Protection","CIN/CP Social Work Unit - Area 4","R1100"
"Wolverhampton City Council","http://opendatacommunities.org/id/metropolitan-district-council/wolverhampton","Blue Group Interntl Limited T/A Bluecare","HSOC5573635","29.70","Agency Staff","130120452","03/06/16","Children in Need & Child Protection","CIN/CP Social Work Unit - Area 4","R1100"
"Wolverhampton City Council","http://opendatacommunities.org/id/metropolitan-district-council/wolverhampton","Blue Group Interntl Limited T/A Bluecare","HSOC5571864","1,369.00","Agency Staff","130119601","03/06/16","Children in Need & Child Protection","CIN/CP Social Work Unit - Area 3B","R1100"
"Wolverhampton City Council","http://opendatacommunities.org/id/metropolitan-district-council/wolverhampton","Blue Group Interntl Limited T/A Bluecare","HSOC5579620","57.49","Agency Staff","130126228","29/06/16","Children in Need & Child Protection","CIN - Warstones MAST - Area 4","R1100"
"Wolverhampton City Council","http://opendatacommunities.org/id/metropolitan-district-council/wolverhampton","Blue Group Interntl Limited T/A Bluecare","HSOC5579621","119.72","Agency Staff","130126229","29/06/16","Children in Need & Child Protection","CIN/CP Social Work Unit - Area 4","R1100"
"Wolverhampton City Council","http://opendatacommunities.org/id/metropolitan-district-council/wolverhampton","Blue Group Interntl Limited T/A Bluecare","HSOC5572145A","1,080.00","Agency Staff","130126227","29/06/16","Children in Need & Child Protection","CIN/CP Social Work Unit - Area 4","R1100"
"Wolverhampton City Council","http://opendatacommunities.org/id/metropolitan-district-council/wolverhampton","Blue Group Interntl Limited T/A Bluecare","HSOC5579624","1,332.00","Agency Staff","130126232","29/06/16","Children in Need & Child Protection","CIN/CP Social Work Unit - Area 4","R1100"
"Wolverhampton City Council","http://opendatacommunities.org/id/metropolitan-district-council/wolverhampton","Blue Group Interntl Limited T/A Bluecare","HSOC5574037","13.50","Agency Staff","130125511","22/06/16","Children in Need & Child Protection","CIN/CP Social Work Unit - Area 3B","R1100"
"Wolverhampton City Council","http://opendatacommunities.org/id/metropolitan-district-council/wolverhampton","Blue Group Interntl Limited T/A Bluecare","HSOC5571865","17.10","Agency Staff","130125506","22/06/16","Children in Need & Child Protection","CIN/CP Social Work Unit - Area 3B","R1100"
"Wolverhampton City Council","http://opendatacommunities.org/id/metropolitan-district-council/wolverhampton","Blue Group Interntl Limited T/A Bluecare","HSOC5571867","16.65","Agency Staff","130125508","22/06/16","Children in Need & Child Protection","CIN/CP Social Work Unit - Area 3B","R1100"
"Wolverhampton City Council","http://opendatacommunities.org/id/metropolitan-district-council/wolverhampton","Blue Group Interntl Limited T/A Bluecare","HSOC5576422","17.10","Agency Staff","130125512","22/06/16","Children in Need & Child Protection","CIN/CP Social Work Unit - Area 3B","R1100"
"Wolverhampton City Council","http://opendatacommunities.org/id/metropolitan-district-council/wolverhampton","Blue Group Interntl Limited T/A Bluecare","HSOC5571246","31.50","Agency Staff","130119135","01/06/16","Children in Need & Child Protection","CIN/CP Social Work Unit - Area 4","R1100"
"Wolverhampton City Council","http://opendatacommunities.org/id/metropolitan-district-council/wolverhampton","Blue Group Interntl Limited T/A Bluecare","HSOC5571014","1,332.00","Agency Staff","130119406","01/06/16","Children in Need & Child Protection","CIN/CP Social Work Unit - Area 4","R1100"
"Wolverhampton City Council","http://opendatacommunities.org/id/metropolitan-district-council/wolverhampton","Blue Group Interntl Limited T/A Bluecare","HSOC5578046","1,332.00","Agency Staff","130122599","17/06/16","Children in Need & Child Protection","CIN/CP Social Work Unit - Area 4","R1100"
"Wolverhampton City Council","http://opendatacommunities.org/id/metropolitan-district-council/wolverhampton","Blue Mountain Foods Limited","6500","89.00","Provisions (Resale)","130124381","15/06/16","Older People Provider Services","Nelson Mandela House","R4102"
"Wolverhampton City Council","http://opendatacommunities.org/id/metropolitan-district-council/wolverhampton","Blue Mountain Foods Limited","6774","38.00","Provisions (Resale)","130121772","01/06/16","Catering","Education Catering - General Overheads","R4102"
"Wolverhampton City Council","http://opendatacommunities.org/id/metropolitan-district-council/wolverhampton","Blue Mountain Foods Limited","6772","19.00","Provisions (Resale)","130121771","01/06/16","Catering","Education Catering - General Overheads","R4102"
"Wolverhampton City Council","http://opendatacommunities.org/id/metropolitan-district-council/wolverhampton","Blue Mountain Foods Limited","6790","76.00","Provisions (Resale)","130122781","24/06/16","Catering","Education Catering - General Overheads","R4102"
"Wolverhampton City Council","http://opendatacommunities.org/id/metropolitan-district-council/wolverhampton","Blue Mountain Foods Limited","6789","57.00","Provisions (Resale)","130122780","24/06/16","Catering","Education Catering - General Overheads","R4102"
"Wolverhampton City Council","http://opendatacommunities.org/id/metropolitan-district-council/wolverhampton","Blue Mountain Foods Limited","6788","19.00","Provisions (Resale)","130122779","24/06/16","Catering","Education Catering - General Overheads","R4102"
"Wolverhampton City Council","http://opendatacommunities.org/id/metropolitan-district-council/wolverhampton","Blue Mountain Foods Limited","6767","38.00","Provisions (Resale)","130121767","10/06/16","Catering","Education Catering - General Overheads","R4102"
"Wolverhampton City Council","http://opendatacommunities.org/id/metropolitan-district-council/wolverhampton","Blue Mountain Foods Limited","6768","76.00","Provisions (Resale)","130121768","10/06/16","Catering","Education Catering - General Overheads","R4102"
"Wolverhampton City Council","http://opendatacommunities.org/id/metropolitan-district-council/wolverhampton","Blue Mountain Foods Limited","6769","38.00","Provisions (Resale)","130121769","10/06/16","Catering","Education Catering - General Overheads","R4102"
"Wolverhampton City Council","http://opendatacommunities.org/id/metropolitan-district-council/wolverhampton","BME Travel","1708","1,900.00","Client Transport","130123739","17/06/16","School Planning & Resources","Special - Transport","R3042"
"Wolverhampton City Council","http://opendatacommunities.org/id/metropolitan-district-council/wolverhampton","Boningale Nurseries","351688","717.50","Materials","130124495","17/06/16","Environmental Maintenance","Graffiti Removal Team","R4007"
"Wolverhampton City Council","http://opendatacommunities.org/id/metropolitan-district-council/wolverhampton","Bottomline Technologies Europe Limited","INV485666","1,000.00","Computing - Purchase of Software","130120816","03/06/16","The Hub","Quality and Improvement","R4531"
"Wolverhampton City Council","http://opendatacommunities.org/id/metropolitan-district-council/wolverhampton","Bottomline Technologies Europe Limited","INV485224","21.75","Computing - Repair and Maint","130122029","15/06/16","The Hub","Quality and Improvement","R4533"
"Wolverhampton City Council","http://opendatacommunities.org/id/metropolitan-district-council/wolverhampton","Bottomline Technologies Europe Limited","MINV199518","1,394.50","Computing - Licences","130124757","17/06/16","Central Corporate Budgets","Corporate Management","R4535"
"Wolverhampton City Council","http://opendatacommunities.org/id/metropolitan-district-council/wolverhampton","Boulton Travel Limited","BTWCBM3.9","1,710.00","Client Transport","130122840","17/06/16","School Planning & Resources","Special - Transport","R3042"
"Wolverhampton City Council","http://opendatacommunities.org/id/metropolitan-district-council/wolverhampton","Boulton Travel Limited","BTWCBM1.9","1,710.00","Client Transport","130122839","17/06/16","School Planning & Resources","Special - Transport","R3042"
"Wolverhampton City Council","http://opendatacommunities.org/id/metropolitan-district-council/wolverhampton","Boulton Travel Limited","BTWCBM4.9","1,620.00","Client Transport","130122841","17/06/16","School Planning & Resources","Special - Transport","R3042"
"Wolverhampton City Council","http://opendatacommunities.org/id/metropolitan-district-council/wolverhampton","Boulton Travel Limited","BTWCBM4.8","1,350.00","Client Transport","130119397","01/06/16","School Planning & Resources","Special - Transport","R3042"
"Wolverhampton City Council","http://opendatacommunities.org/id/metropolitan-district-council/wolverhampton","Boulton Travel Limited","BTWCBM1.8","1,425.00","Client Transport","130119396","01/06/16","School Planning & Resources","Special - Transport","R3042"
"Wolverhampton City Council","http://opendatacommunities.org/id/metropolitan-district-council/wolverhampton","Boulton Travel Limited","BTWCBM3.8","1,425.00","Client Transport","130120263","01/06/16","School Planning & Resources","Special - Transport","R3042"
"Wolverhampton City Council","http://opendatacommunities.org/id/metropolitan-district-council/wolverhampton","Boulton Travel Limited","BTWCBM5.8","1,350.00","Client Transport","130120264","01/06/16","School Planning & Resources","Special - Transport","R3042"
"Wolverhampton City Council","http://opendatacommunities.org/id/metropolitan-district-council/wolverhampton","Boulton Travel Limited","BTDH5","270.00","Client Transport","130123177","03/06/16","Schools","Dunstall Hill Primary School","R3042"
"Wolverhampton City Council","http://opendatacommunities.org/id/metropolitan-district-council/wolverhampton","Boulton Travel Limited","BTHS7","600.00","Services - Professional Fees","130124724","17/06/16","Mental Health Commissioning","Head Start Wolverhampton","R4400"
"Wolverhampton City Council","http://opendatacommunities.org/id/metropolitan-district-council/wolverhampton","Boulton Travel Limited","BTAC01","120.00","Hire of Vehicles","130124723","15/06/16","Skills","Employment Programmes","R3200"
"Wolverhampton City Council","http://opendatacommunities.org/id/metropolitan-district-council/wolverhampton","Boulton Travel Limited","BTWCBM5.9","1,620.00","Client Transport","130122842","17/06/16","School Planning & Resources","Special - Transport","R3042"
"Wolverhampton City Council","http://opendatacommunities.org/id/metropolitan-district-council/wolverhampton","Boulton Travel Limited","BTDH4","180.00","Client Transport","130123176","03/06/16","Schools","Dunstall Hill Primary School","R3042"
"Wolverhampton City Council","http://opendatacommunities.org/id/metropolitan-district-council/wolverhampton","Brakes/Brakefresh","62133752","29.07","Provisions (Resale)","130121370","03/06/16","Catering","Civic Centre Catering","R4102"
"Wolverhampton City Council","http://opendatacommunities.org/id/metropolitan-district-council/wolverhampton","Brakes/Brakefresh","123232","-9.69","Provisions (Resale)","130121321","03/06/16","Catering","Civic Centre Catering","R4102"
"Wolverhampton City Council","http://opendatacommunities.org/id/metropolitan-district-council/wolverhampton","Brakes/Brakefresh","123232","9.69","Provisions (Resale)","130121321","03/06/16","Catering","Civic Centre Catering","R4102"
"Wolverhampton City Council","http://opendatacommunities.org/id/metropolitan-district-council/wolverhampton","Brakes/Brakefresh","123232","-9.69","Provisions (Resale)","130121321","03/06/16","Catering","Civic Centre Catering","R4102"
"Wolverhampton City Council","http://opendatacommunities.org/id/metropolitan-district-council/wolverhampton","Brakes/Brakefresh","9255017645","55.53","Provisions (Resale)","130121409","03/06/16","Catering","Civic Centre Catering","R4102"
"Wolverhampton City Council","http://opendatacommunities.org/id/metropolitan-district-council/wolverhampton","Brakes/Brakefresh","9255017645","-55.53","Provisions (Resale)","130121409","03/06/16","Catering","Civic Centre Catering","R4102"
"Wolverhampton City Council","http://opendatacommunities.org/id/metropolitan-district-council/wolverhampton","Brakes/Brakefresh","9255017645","55.53","Provisions (Resale)","130121409","03/06/16","Catering","Civic Centre Catering","R4102"
"Wolverhampton City Council","http://opendatacommunities.org/id/metropolitan-district-council/wolverhampton","Brakes/Brakefresh","9255014548","70.30","Provisions (Resale)","130121408","03/06/16","Catering","Civic Centre Catering","R4102"
"Wolverhampton City Council","http://opendatacommunities.org/id/metropolitan-district-council/wolverhampton","Brakes/Brakefresh","9255014548","-70.30","Provisions (Resale)","130121408","03/06/16","Catering","Civic Centre Catering","R4102"
"Wolverhampton City Council","http://opendatacommunities.org/id/metropolitan-district-council/wolverhampton","Brakes/Brakefresh","9255014548","70.30","Provisions (Resale)","130121408","03/06/16","Catering","Civic Centre Catering","R4102"
"Wolverhampton City Council","http://opendatacommunities.org/id/metropolitan-district-council/wolverhampton","Brakes/Brakefresh","9253009448","69.50","Provisions (Resale)","130121407","01/06/16","Catering","Civic Centre Catering","R4102"
"Wolverhampton City Council","http://opendatacommunities.org/id/metropolitan-district-council/wolverhampton","Brakes/Brakefresh","9253009448","-69.50","Provisions (Resale)","130121407","01/06/16","Catering","Civic Centre Catering","R4102"
"Wolverhampton City Council","http://opendatacommunities.org/id/metropolitan-district-council/wolverhampton","Brakes/Brakefresh","9253009448","11.19","Provisions (Resale)","130121407","01/06/16","Catering","Civic Centre Catering","R4102"
"Wolverhampton City Council","http://opendatacommunities.org/id/metropolitan-district-council/wolverhampton","Brakes/Brakefresh","9253009448","58.31","Provisions (Resale)","130121407","01/06/16","Catering","Civic Centre Catering","R4102"
"Wolverhampton City Council","http://opendatacommunities.org/id/metropolitan-district-council/wolverhampton","Brakes/Brakefresh","9255022617","83.06","Provisions (Resale)","130125304","22/06/16","Catering","Civic Centre Catering","R4102"
"Wolverhampton City Council","http://opendatacommunities.org/id/metropolitan-district-council/wolverhampton","Brakes/Brakefresh","9255022617","-83.06","Provisions (Resale)","130125304","22/06/16","Catering","Civic Centre Catering","R4102"
"Wolverhampton City Council","http://opendatacommunities.org/id/metropolitan-district-council/wolverhampton","Brakes/Brakefresh","9255022617","83.06","Provisions (Resale)","130125304","22/06/16","Catering","Civic Centre Catering","R4102"
"Wolverhampton City Council","http://opendatacommunities.org/id/metropolitan-district-council/wolverhampton","Brakes/Brakefresh","9255033683","223.34","Provisions (Resale)","130125305","22/06/16","Catering","Civic Centre Catering","R4102"
"Wolverhampton City Council","http://opendatacommunities.org/id/metropolitan-district-council/wolverhampton","Brakes/Brakefresh","9255033683","-223.34","Provisions (Resale)","130125305","22/06/16","Catering","Civic Centre Catering","R4102"
"Wolverhampton City Council","http://opendatacommunities.org/id/metropolitan-district-council/wolverhampton","Brakes/Brakefresh","9255033683","34.72","Provisions (Resale)","130125305","22/06/16","Catering","Civic Centre Catering","R4102"
"Wolverhampton City Council","http://opendatacommunities.org/id/metropolitan-district-council/wolverhampton","Brakes/Brakefresh","9255033683","188.62","Provisions (Resale)","130125305","22/06/16","Catering","Civic Centre Catering","R4102"
"Wolverhampton City Council","http://opendatacommunities.org/id/metropolitan-district-council/wolverhampton","Brakes/Brakefresh","7237017016","-14.26","Provisions (Resale)","130122785","15/06/16","Catering","Civic Centre Catering","R4102"
"Wolverhampton City Council","http://opendatacommunities.org/id/metropolitan-district-council/wolverhampton","Brakes/Brakefresh","7237017016","14.26","Provisions (Resale)","130122785","15/06/16","Catering","Civic Centre Catering","R4102"
"Wolverhampton City Council","http://opendatacommunities.org/id/metropolitan-district-council/wolverhampton","Brakes/Brakefresh","7237017016","-14.26","Provisions (Resale)","130122785","15/06/16","Catering","Civic Centre Catering","R4102"
"Wolverhampton City Council","http://opendatacommunities.org/id/metropolitan-district-council/wolverhampton","Brakes/Brakefresh","9237796684","27.60","Provisions (Not for resale)","130116341","15/06/16","Catering","Civic Centre Catering","R4101"
"Wolverhampton City Council","http://opendatacommunities.org/id/metropolitan-district-council/wolverhampton","Brakes/Brakefresh","7237015854","-11.98","Provisions (Not for resale)","130118202","15/06/16","Catering","Civic Centre Catering","R4101"
"Wolverhampton City Council","http://opendatacommunities.org/id/metropolitan-district-council/wolverhampton","Brand Creative Media Limited","881","950.00","Marketing \ Non-staff advertising","130120760","03/06/16","Standards and Vulnerable Pupils","Parent / Partnership Service","R4317"
"Wolverhampton City Council","http://opendatacommunities.org/id/metropolitan-district-council/wolverhampton","Brand Creative Media Limited","881","30.00","Comms - Postage","130120760","03/06/16","Standards and Vulnerable Pupils","Parent / Partnership Service","R4503"
"Wolverhampton City Council","http://opendatacommunities.org/id/metropolitan-district-council/wolverhampton","Brand Creative Media Limited","881","-950.00","Marketing \ Non-staff advertising","130120760","03/06/16","Standards and Vulnerable Pupils","Parent / Partnership Service","R4317"
"Wolverhampton City Council","http://opendatacommunities.org/id/metropolitan-district-council/wolverhampton","Brand Creative Media Limited","881","950.00","Marketing \ Non-staff advertising","130120760","03/06/16","Standards and Vulnerable Pupils","Parent / Partnership Service","R4317"
"Wolverhampton City Council","http://opendatacommunities.org/id/metropolitan-district-council/wolverhampton","Brand Creative Media Limited","881","-30.00","Comms - Postage","130120760","03/06/16","Standards and Vulnerable Pupils","Parent / Partnership Service","R4503"
"Wolverhampton City Council","http://opendatacommunities.org/id/metropolitan-district-council/wolverhampton","Brand Creative Media Limited","881","30.00","Comms - Postage","130120760","03/06/16","Standards and Vulnerable Pupils","Parent / Partnership Service","R4503"
"Wolverhampton City Council","http://opendatacommunities.org/id/metropolitan-district-council/wolverhampton","Bristow & Sutor","161759","1.78","Services - Professional Fees","130104536","15/06/16","Revenues & Benefits","Revenues","R4400"
"Wolverhampton City Council","http://opendatacommunities.org/id/metropolitan-district-council/wolverhampton","BT (Phone Bills)","CM59371556 Q109KP (2)","-8.36","Fixtures and Fittings - R&M","190242422","17/06/16","Facilities Management","Caretakers Community Centre","R2502"
"Wolverhampton City Council","http://opendatacommunities.org/id/metropolitan-district-council/wolverhampton","BT (Phone Bills)","Q111 &X","245.97","Comms - Telephone Call charges","190242410","17/06/16","Learning Disability Provider","Support Plus","R4505"
"Wolverhampton City Council","http://opendatacommunities.org/id/metropolitan-district-council/wolverhampton","BT (Phone Bills)","CM62195523 Q065AC (2)","-0.03","Fixtures and Fittings - R&M","190242431","17/06/16","Facilities Management","Caretakers Community Centre","R2502"
"Wolverhampton City Council","http://opendatacommunities.org/id/metropolitan-district-council/wolverhampton","BT (Phone Bills)","CM59126723 Q109W3 (2)","-18.00","Fixtures and Fittings - R&M","190242420","17/06/16","Facilities Management","Caretakers Community Centre","R2502"
"Wolverhampton City Council","http://opendatacommunities.org/id/metropolitan-district-council/wolverhampton","BT (Phone Bills)","CM 6844 8565 Q004 Dl","90.40","Comms - Telephone Call charges","130121415","22/06/16","Learning Disability Provider","Learning Disabilities Management","R4505"
"Wolverhampton City Council","http://opendatacommunities.org/id/metropolitan-district-council/wolverhampton","BT (Phone Bills)","CM 6844 8565 Q004 Dl","-90.40","Comms - Telephone Call charges","130121415","22/06/16","Learning Disability Provider","Learning Disabilities Management","R4505"
"Wolverhampton City Council","http://opendatacommunities.org/id/metropolitan-district-council/wolverhampton","BT (Phone Bills)","CM 6844 8565 Q004 Dl","120.40","Comms - Telephone Call charges","130121415","22/06/16","Learning Disability Provider","Learning Disabilities Management","R4505"
"Wolverhampton City Council","http://opendatacommunities.org/id/metropolitan-district-council/wolverhampton","BT (Phone Bills)","CM 6844 8565 Q004 Dl","-30.00","Comms - Telephone Call charges","130121415","22/06/16","Learning Disability Provider","Learning Disabilities Management","R4505"
"Wolverhampton City Council","http://opendatacommunities.org/id/metropolitan-district-council/wolverhampton","BT (Phone Bills)","Q009S5 CM6790 7835","88.70","Fixtures and Fittings - R&M","190243176","22/06/16","Facilities Management","Civic Centre","R2502"
"Wolverhampton City Council","http://opendatacommunities.org/id/metropolitan-district-council/wolverhampton","BT (Phone Bills)","Q009S5 CM67907835","30.00","Fixtures and Fittings - R&M","190243177","22/06/16","Facilities Management","Civic Centre","R2502"
"Wolverhampton City Council","http://opendatacommunities.org/id/metropolitan-district-council/wolverhampton","BT (Phone Bills)","Q098&2 CM59907452","86.21","Fixtures and Fittings - R&M","190243729","22/06/16","Facilities Management","Management of Vacant Properties","R2502"
"Wolverhampton City Council","http://opendatacommunities.org/id/metropolitan-district-council/wolverhampton","BT (Phone Bills)","CM61646492 Q0705M","86.21","Fixtures and Fittings - R&M","190243730","22/06/16","Facilities Management","Caretakers Community Centre","R2502"
"Wolverhampton City Council","http://opendatacommunities.org/id/metropolitan-district-council/wolverhampton","BT (Phone Bills)","Q084 Z7","84.90","Comms - Telephone Rental","130122869","03/06/16","Bereavement Services","Crematorium","R4504"
"Wolverhampton City Council","http://opendatacommunities.org/id/metropolitan-district-council/wolverhampton","BT (Phone Bills)","CM 5937 4191 Q10991","114.90","Comms - Telephone Rental","130119900","03/06/16","Bereavement Services","Crematorium","R4504"
"Wolverhampton City Council","http://opendatacommunities.org/id/metropolitan-district-council/wolverhampton","BT (Phone Bills)","CM 5937 4191 Q10991","-114.90","Comms - Telephone Rental","130119900","03/06/16","Bereavement Services","Crematorium","R4504"
"Wolverhampton City Council","http://opendatacommunities.org/id/metropolitan-district-council/wolverhampton","BT (Phone Bills)","CM 5937 4191 Q10991","84.90","Comms - Telephone Rental","130119900","03/06/16","Bereavement Services","Crematorium","R4504"
